Department family,Entity,Date,Expense type,Expense area,Supplier,Transaction number,Amount,VAT registration number
Department for Business Energy and Industrial Strategy,Intellectual Property Office,17/04/2018,Accommodation,People Places & Serv Directorate,Corona Energy,12963197,1164.98,Not Applicable
Department for Business Energy and Industrial Strategy,Intellectual Property Office,17/04/2018,Accommodation,People Places & Serv Directorate,Corona Energy,12963198,3016.09,Not Applicable
Department for Business Energy and Industrial Strategy,Intellectual Property Office,23/04/2018,Accommodation,People Places & Serv Directorate,Department For Business Innovation,6.1511E+11,76287.20,Not Applicable
Department for Business Energy and Industrial Strategy,Intellectual Property Office,24/04/2018,Accommodation,People Places & Serv Directorate,Department For Business Innovation,6.1511E+11,19775.22,Not Applicable
Department for Business Energy and Industrial Strategy,Intellectual Property Office,24/04/2018,Accommodation,People Places & Serv Directorate,Department For Business Innovation,6.1511E+11,7604.99,Not Applicable
Department for Business Energy and Industrial Strategy,Intellectual Property Office,24/04/2018,Accommodation,People Places & Serv Directorate,Department For Business Innovation,6.1511E+11,39239.90,Not Applicable
Department for Business Energy and Industrial Strategy,Intellectual Property Office,24/04/2018,Accommodation,People Places & Serv Directorate,Department For Business Innovation,6.1511E+11,7410.00,Not Applicable
Department for Business Energy and Industrial Strategy,Intellectual Property Office,09/04/2018,Accommodation,People Places & Serv Directorate,Senator International Ltd,S01433756,18812.52,Not Applicable
Department for Business Energy and Industrial Strategy,Intellectual Property Office,09/04/2018,Accommodation,People Places & Serv Directorate,Senator International Ltd,S01433757,17762.14,Not Applicable
Department for Business Energy and Industrial Strategy,Intellectual Property Office,20/04/2018,Accommodation,People Places & Serv Directorate,Senator International Ltd,S01439621,683.20,Not Applicable
Department for Business Energy and Industrial Strategy,Intellectual Property Office,20/04/2018,Accommodation,People Places & Serv Directorate,Senator International Ltd,S01439622,523.60,Not Applicable
Department for Business Energy and Industrial Strategy,Intellectual Property Office,20/04/2018,Accommodation,People Places & Serv Directorate,Senator International Ltd,S01444990,6273.60,Not Applicable
Department for Business Energy and Industrial Strategy,Intellectual Property Office,13/04/2018,Accommodation,People Places & Serv Directorate,Specialist Computer Centres Plc,OP-M428746,573.60,Not Applicable
Department for Business Energy and Industrial Strategy,Intellectual Property Office,05/04/2018,Accommodation,People Places & Serv Directorate,Thomas Waste Management Ltd,193156,672.00,Not Applicable
Department for Business Energy and Industrial Strategy,Intellectual Property Office,13/04/2018,Accommodation,People Places & Serv Directorate,Thomas Waste Management Ltd,194150,823.68,Not Applicable
Department for Business Energy and Industrial Strategy,Intellectual Property Office,03/04/2018,Accommodation,People Places & Serv Directorate,Total Security Protection Ltd,202752,3890.40,Not Applicable
Department for Business Energy and Industrial Strategy,Intellectual Property Office,25/04/2018,Accommodation,People Places & Serv Directorate,UK Shared Business Services Ltd,SBS-15753,2315.86,Not Applicable
Department for Business Energy and Industrial Strategy,Intellectual Property Office,09/04/2018,Accommodation,People Places & Serv Directorate,EDF ENERGY,4041462,34197.98,Not Applicable
Department for Business Energy and Industrial Strategy,Intellectual Property Office,09/04/2018,Accommodation,People Places & Serv Directorate,EDF ENERGY,4045840,838.66,Not Applicable
Department for Business Energy and Industrial Strategy,Intellectual Property Office,11/04/2018,Accommodation,People Places & Serv Directorate,Quality Floorcare Ltd,15689,11548.80,Not Applicable
Department for Business Energy and Industrial Strategy,Intellectual Property Office,18/04/2018,Accommodation,People Places & Serv Directorate,Magscapes Ltd,INV-2595,6220.80,Not Applicable
Department for Business Energy and Industrial Strategy,Intellectual Property Office,12/04/2018,Accommodation,People Places & Serv Directorate,SIG TRADING LTD,7033-60046459,1148.10,Not Applicable
Department for Business Energy and Industrial Strategy,Intellectual Property Office,12/04/2018,Accommodation,People Places & Serv Directorate,D&M Mechanical Engineers Ltd,3246,36000.00,Not Applicable
Department for Business Energy and Industrial Strategy,Intellectual Property Office,24/04/2018,Accommodation,People Places & Serv Directorate,Rexel UK Limited,435278656,23616.00,Not Applicable
Department for Business Energy and Industrial Strategy,Intellectual Property Office,06/04/2018,Accommodation,People Places & Serv Directorate,ENGIE Services Limited,1800035331,3360.00,Not Applicable
Department for Business Energy and Industrial Strategy,Intellectual Property Office,05/04/2018,Accommodation,People Places & Serv Directorate,ADVANCED FIRE TECHNOLOGIES,335933,45403.56,Not Applicable
Department for Business Energy and Industrial Strategy,Intellectual Property Office,05/04/2018,Accommodation,People Places & Serv Directorate,ADVANCED FIRE TECHNOLOGIES,335935,83611.80,Not Applicable
Department for Business Energy and Industrial Strategy,Intellectual Property Office,03/04/2018,Accommodation,People Places & Serv Directorate,Accelerate Cleaning Solutions Ltd,5211,2408.95,Not Applicable
Department for Business Energy and Industrial Strategy,Intellectual Property Office,25/04/2018,Accommodation,People Places & Serv Directorate,Shred It Ltd,9502730659,1540.80,Not Applicable
Department for Business Energy and Industrial Strategy,Intellectual Property Office,25/04/2018,Accommodation,People Places & Serv Directorate,Vinci Construction UK Ltd,18030636,924.44,Not Applicable
Department for Business Energy and Industrial Strategy,Intellectual Property Office,09/04/2018,Accommodation,People Places & Serv Directorate,Glazing Renovations,IPO-1012,2232.00,Not Applicable
Department for Business Energy and Industrial Strategy,Intellectual Property Office,05/04/2018,Accommodation,People Places & Serv Directorate,Ridan Composting Ltd,IPN472,163.20,Not Applicable
Department for Business Energy and Industrial Strategy,Intellectual Property Office,05/04/2018,Information Technology,Copyright and Enforcement Directorate,SAS SOFTWARE LIMITED,1800394,4171.20,Not Applicable
Department for Business Energy and Industrial Strategy,Intellectual Property Office,09/04/2018,Information Technology,IT Directorate,British Standards Institution,94931810,1431.00,Not Applicable
Department for Business Energy and Industrial Strategy,Intellectual Property Office,04/04/2018,Information Technology,IT Directorate,Capita Business Services  Ltd,LO10256381,3002.86,Not Applicable
Department for Business Energy and Industrial Strategy,Intellectual Property Office,04/04/2018,Information Technology,IT Directorate,Capita Business Services  Ltd,LO10256381,373.32,Not Applicable
Department for Business Energy and Industrial Strategy,Intellectual Property Office,05/04/2018,Information Technology,IT Directorate,Capita Business Services  Ltd,LO10257536,2554.84,Not Applicable
Department for Business Energy and Industrial Strategy,Intellectual Property Office,05/04/2018,Information Technology,IT Directorate,Capita Business Services  Ltd,LO10257536,2151.64,Not Applicable
Department for Business Energy and Industrial Strategy,Intellectual Property Office,05/04/2018,Information Technology,IT Directorate,Capita Business Services  Ltd,LO10257536,9156.01,Not Applicable
Department for Business Energy and Industrial Strategy,Intellectual Property Office,05/04/2018,Information Technology,IT Directorate,Capita Business Services  Ltd,LO10257536,3718.51,Not Applicable
Department for Business Energy and Industrial Strategy,Intellectual Property Office,05/04/2018,Information Technology,IT Directorate,Capita Business Services  Ltd,LO10257536,2449.81,Not Applicable
Department for Business Energy and Industrial Strategy,Intellectual Property Office,05/04/2018,Information Technology,IT Directorate,Capita Business Services  Ltd,LO10257536,4371.09,Not Applicable
Department for Business Energy and Industrial Strategy,Intellectual Property Office,05/04/2018,Information Technology,IT Directorate,Capita Business Services  Ltd,LO10257536,3952.93,Not Applicable
Department for Business Energy and Industrial Strategy,Intellectual Property Office,05/04/2018,Information Technology,IT Directorate,Capita Business Services  Ltd,LO10257536,7330.45,Not Applicable
Department for Business Energy and Industrial Strategy,Intellectual Property Office,05/04/2018,Information Technology,IT Directorate,Capita Business Services  Ltd,LO10257536,3273.85,Not Applicable
Department for Business Energy and Industrial Strategy,Intellectual Property Office,13/04/2018,Information Technology,IT Directorate,Capita Business Services  Ltd,LO10259109,1457.15,Not Applicable
Department for Business Energy and Industrial Strategy,Intellectual Property Office,13/04/2018,Information Technology,IT Directorate,Capita Business Services  Ltd,LO10259109,1853.71,Not Applicable
Department for Business Energy and Industrial Strategy,Intellectual Property Office,13/04/2018,Information Technology,IT Directorate,Capita Business Services  Ltd,LO10259109,4356.59,Not Applicable
Department for Business Energy and Industrial Strategy,Intellectual Property Office,13/04/2018,Information Technology,IT Directorate,Capita Business Services  Ltd,LO10259109,1257.88,Not Applicable
Department for Business Energy and Industrial Strategy,Intellectual Property Office,13/04/2018,Information Technology,IT Directorate,Capita Business Services  Ltd,LO10259109,1630.12,Not Applicable
Department for Business Energy and Industrial Strategy,Intellectual Property Office,13/04/2018,Information Technology,IT Directorate,Capita Business Services  Ltd,LO10259109,3904.09,Not Applicable
Department for Business Energy and Industrial Strategy,Intellectual Property Office,13/04/2018,Information Technology,IT Directorate,Capita Business Services  Ltd,LO10259109,3673.33,Not Applicable
Department for Business Energy and Industrial Strategy,Intellectual Property Office,13/04/2018,Information Technology,IT Directorate,Capita Business Services  Ltd,LO10259109,5017.99,Not Applicable
Department for Business Energy and Industrial Strategy,Intellectual Property Office,13/04/2018,Information Technology,IT Directorate,Capita Business Services  Ltd,LO10259109,2179.32,Not Applicable
Department for Business Energy and Industrial Strategy,Intellectual Property Office,13/04/2018,Information Technology,IT Directorate,Capita Business Services  Ltd,LO10259109,2449.81,Not Applicable
Department for Business Energy and Industrial Strategy,Intellectual Property Office,13/04/2018,Information Technology,IT Directorate,Capita Business Services  Ltd,LO10259109,3307.54,Not Applicable
Department for Business Energy and Industrial Strategy,Intellectual Property Office,13/04/2018,Information Technology,IT Directorate,Capita Business Services  Ltd,LO10259109,3904.09,Not Applicable
Department for Business Energy and Industrial Strategy,Intellectual Property Office,13/04/2018,Information Technology,IT Directorate,Capita Business Services  Ltd,LO10259109,12438.33,Not Applicable
Department for Business Energy and Industrial Strategy,Intellectual Property Office,13/04/2018,Information Technology,IT Directorate,Capita Business Services  Ltd,LO10259109,1224.91,Not Applicable
Department for Business Energy and Industrial Strategy,Intellectual Property Office,20/04/2018,Information Technology,IT Directorate,Capita Business Services  Ltd,LO10261562,4435.40,Not Applicable
Department for Business Energy and Industrial Strategy,Intellectual Property Office,20/04/2018,Information Technology,IT Directorate,Capita Business Services  Ltd,LO10261562,2800.75,Not Applicable
Department for Business Energy and Industrial Strategy,Intellectual Property Office,20/04/2018,Information Technology,IT Directorate,Capita Business Services  Ltd,LO10261562,5583.20,Not Applicable
Department for Business Energy and Industrial Strategy,Intellectual Property Office,20/04/2018,Information Technology,IT Directorate,Capita Business Services  Ltd,LO10261562,1385.46,Not Applicable
Department for Business Energy and Industrial Strategy,Intellectual Property Office,20/04/2018,Information Technology,IT Directorate,Capita Business Services  Ltd,LO10261562,3904.09,Not Applicable
Department for Business Energy and Industrial Strategy,Intellectual Property Office,20/04/2018,Information Technology,IT Directorate,Capita Business Services  Ltd,LO10261562,1518.19,Not Applicable
Department for Business Energy and Industrial Strategy,Intellectual Property Office,20/04/2018,Information Technology,IT Directorate,Capita Business Services  Ltd,LO10261562,1799.28,Not Applicable
Department for Business Energy and Industrial Strategy,Intellectual Property Office,20/04/2018,Information Technology,IT Directorate,Capita Business Services  Ltd,LO10261562,2578.97,Not Applicable
Department for Business Energy and Industrial Strategy,Intellectual Property Office,20/04/2018,Information Technology,IT Directorate,Capita Business Services  Ltd,LO10261562,4235.88,Not Applicable
Department for Business Energy and Industrial Strategy,Intellectual Property Office,26/04/2018,Information Technology,IT Directorate,Capita Business Services  Ltd,LO10262330,9548.90,Not Applicable
Department for Business Energy and Industrial Strategy,Intellectual Property Office,26/04/2018,Information Technology,IT Directorate,Capita Business Services  Ltd,LO10262330,1353.41,Not Applicable
Department for Business Energy and Industrial Strategy,Intellectual Property Office,26/04/2018,Information Technology,IT Directorate,Capita Business Services  Ltd,LO10262330,6792.60,Not Applicable
Department for Business Energy and Industrial Strategy,Intellectual Property Office,26/04/2018,Information Technology,IT Directorate,Capita Business Services  Ltd,LO10262330,2482.66,Not Applicable
Department for Business Energy and Industrial Strategy,Intellectual Property Office,26/04/2018,Information Technology,IT Directorate,Capita Business Services  Ltd,LO10262330,425.34,Not Applicable
Department for Business Energy and Industrial Strategy,Intellectual Property Office,26/04/2018,Information Technology,IT Directorate,Capita Business Services  Ltd,LO10262330,1986.12,Not Applicable
Department for Business Energy and Industrial Strategy,Intellectual Property Office,26/04/2018,Information Technology,IT Directorate,Capita Business Services  Ltd,LO10262330,3904.09,Not Applicable
Department for Business Energy and Industrial Strategy,Intellectual Property Office,19/04/2018,Information Technology,IT Directorate,CDI Group plc,46598,2940.00,Not Applicable
Department for Business Energy and Industrial Strategy,Intellectual Property Office,04/04/2018,Information Technology,IT Directorate,LA International Computer Consulta,LA485554,2282.99,Not Applicable
Department for Business Energy and Industrial Strategy,Intellectual Property Office,04/04/2018,Information Technology,IT Directorate,LA International Computer Consulta,LA485555,3146.88,Not Applicable
Department for Business Energy and Industrial Strategy,Intellectual Property Office,09/04/2018,Information Technology,IT Directorate,LA International Computer Consulta,LA486785,3311.26,Not Applicable
Department for Business Energy and Industrial Strategy,Intellectual Property Office,20/04/2018,Information Technology,IT Directorate,LA International Computer Consulta,LA488851,1199.95,Not Applicable
Department for Business Energy and Industrial Strategy,Intellectual Property Office,20/04/2018,Information Technology,IT Directorate,LA International Computer Consulta,LA488852,5074.34,Not Applicable
Department for Business Energy and Industrial Strategy,Intellectual Property Office,26/04/2018,Information Technology,IT Directorate,LA International Computer Consulta,LA489808,2169.14,Not Applicable
Department for Business Energy and Industrial Strategy,Intellectual Property Office,26/04/2018,Information Technology,IT Directorate,LA International Computer Consulta,LA489809,3146.88,Not Applicable
Department for Business Energy and Industrial Strategy,Intellectual Property Office,25/04/2018,Information Technology,IT Directorate,QA Ltd,QACI002571,18096.00,Not Applicable
Department for Business Energy and Industrial Strategy,Intellectual Property Office,26/04/2018,Information Technology,IT Directorate,QA Ltd,QACI002746,28536.00,Not Applicable
Department for Business Energy and Industrial Strategy,Intellectual Property Office,09/04/2018,Information Technology,IT Directorate,Softcat Ltd,CRN0119929,-2195.28,Not Applicable
Department for Business Energy and Industrial Strategy,Intellectual Property Office,09/04/2018,Information Technology,IT Directorate,Softcat Ltd,INV01801764,2743.92,Not Applicable
Department for Business Energy and Industrial Strategy,Intellectual Property Office,09/04/2018,Information Technology,IT Directorate,Trustmarque Solutions Ltd,2271165,349863.40,Not Applicable
Department for Business Energy and Industrial Strategy,Intellectual Property Office,09/04/2018,Information Technology,IT Directorate,Trustmarque Solutions Ltd,2271166,322549.58,Not Applicable
Department for Business Energy and Industrial Strategy,Intellectual Property Office,05/04/2018,Information Technology,IT Directorate,Computacenter (UK) ltd,3881491754,831.29,Not Applicable
Department for Business Energy and Industrial Strategy,Intellectual Property Office,17/04/2018,Information Technology,IT Directorate,CDW Limited,PSINV02126628,4502.59,Not Applicable
Department for Business Energy and Industrial Strategy,Intellectual Property Office,20/04/2018,Information Technology,IT Directorate,MCSA GROUP LTD,S-INV-108847,4505.30,Not Applicable
Department for Business Energy and Industrial Strategy,Intellectual Property Office,17/04/2018,Information Technology,IT Directorate,SANDHILL CONSULTANTS LTD,IN4059301,26784.00,Not Applicable
Department for Business Energy and Industrial Strategy,Intellectual Property Office,10/04/2018,Information Technology,IT Directorate,Bytes Software Services Ltd,509634,4464.00,Not Applicable
Department for Business Energy and Industrial Strategy,Intellectual Property Office,17/04/2018,Information Technology,IT Directorate,Oracle Corporation UK Limited,1644859,48648.02,Not Applicable
Department for Business Energy and Industrial Strategy,Intellectual Property Office,17/04/2018,Information Technology,IT Directorate,Oracle Corporation UK Limited,1644866,10282.03,Not Applicable
Department for Business Energy and Industrial Strategy,Intellectual Property Office,17/04/2018,Information Technology,IT Directorate,Oracle Corporation UK Limited,1644888,2935.50,Not Applicable
Department for Business Energy and Industrial Strategy,Intellectual Property Office,17/04/2018,Information Technology,IT Directorate,Oracle Corporation UK Limited,1644890,2838.58,Not Applicable
Department for Business Energy and Industrial Strategy,Intellectual Property Office,17/04/2018,Information Technology,IT Directorate,Oracle Corporation UK Limited,1644893,6957.86,Not Applicable
Department for Business Energy and Industrial Strategy,Intellectual Property Office,24/04/2018,Information Technology,IT Directorate,Responsiv Solutions Limited,0221-CN,567.30,Not Applicable
Department for Business Energy and Industrial Strategy,Intellectual Property Office,18/04/2018,Information Technology,IT Directorate,Responsiv Solutions Limited,RSL0478,396374.35,Not Applicable
Department for Business Energy and Industrial Strategy,Intellectual Property Office,18/04/2018,Information Technology,IT Directorate,Responsiv Solutions Limited,RSL0480,227664.00,Not Applicable
Department for Business Energy and Industrial Strategy,Intellectual Property Office,13/04/2018,Information Technology,IT Directorate,Equal Experts UK Limited,INV-4466,15000.00,Not Applicable
Department for Business Energy and Industrial Strategy,Intellectual Property Office,11/04/2018,Information Technology,IT Directorate,Agile Solutions GB Ltd,INV-3794,19980.00,Not Applicable
Department for Business Energy and Industrial Strategy,Intellectual Property Office,17/04/2018,Information Technology,IT Directorate,Quest Software International,4700196087,16990.00,Not Applicable
Department for Business Energy and Industrial Strategy,Intellectual Property Office,20/04/2018,Information Technology,IT Directorate,Zoho Corporation PVT Limited,1400225,4172.00,Not Applicable
Department for Business Energy and Industrial Strategy,Intellectual Property Office,18/04/2018,Information Technology,IT Directorate,8X8 Solutions,1130763,1690.74,Not Applicable
Department for Business Energy and Industrial Strategy,Intellectual Property Office,18/04/2018,Information Technology,IT Directorate,8X8 Solutions,1132698,1637.34,Not Applicable
Department for Business Energy and Industrial Strategy,Intellectual Property Office,04/04/2018,Information Technology,IT Directorate,8X8 Solutions,2147109,4800.00,Not Applicable
Department for Business Energy and Industrial Strategy,Intellectual Property Office,06/04/2018,Information Technology,IT Directorate,8X8 Solutions,2157824,1645.70,Not Applicable
Department for Business Energy and Industrial Strategy,Intellectual Property Office,10/04/2018,Information Technology,IT Directorate,Perago-Wales,PM008,12300.00,Not Applicable
Department for Business Energy and Industrial Strategy,Intellectual Property Office,12/04/2018,Information Technology,IT Directorate,True North Human Capital Limited,2923,9750.00,Not Applicable
Department for Business Energy and Industrial Strategy,Intellectual Property Office,10/04/2018,Information Technology,IT Directorate,Howell Technology Group,HTG000293,81732.00,Not Applicable
Department for Business Energy and Industrial Strategy,Intellectual Property Office,10/04/2018,Information Technology,IT Directorate,Howell Technology Group,HTG000300,84859.50,Not Applicable
Department for Business Energy and Industrial Strategy,Intellectual Property Office,18/04/2018,Information Technology,IT Directorate,Millgate Computer Systems Limited,400426,2312.93,Not Applicable
Department for Business Energy and Industrial Strategy,Intellectual Property Office,26/04/2018,Information Technology,IT Directorate,Claro Software Ltd,20921,763.20,Not Applicable
Department for Business Energy and Industrial Strategy,Intellectual Property Office,17/04/2018,Information Technology,Patent Directorate,European Patent Office,40277846,128317.34,Not Applicable
Department for Business Energy and Industrial Strategy,Intellectual Property Office,05/04/2018,Information Technology,Patent Directorate,Clarivate Analytics (UK) Limited,837940440,149112.00,Not Applicable
Department for Business Energy and Industrial Strategy,Intellectual Property Office,11/04/2018,Information Technology,People Places & Serv Directorate,Insight Direct (UK) Ltd,3822652,741.31,Not Applicable
Department for Business Energy and Industrial Strategy,Intellectual Property Office,17/04/2018,Information Technology,People Places & Serv Directorate,Vaughan Sound Installations Ltd,24469,1060.80,Not Applicable
Department for Business Energy and Industrial Strategy,Intellectual Property Office,18/04/2018,Information Technology,Projects,Responsiv Solutions Limited,CN-0221,-567.30,Not Applicable
Department for Business Energy and Industrial Strategy,Intellectual Property Office,19/04/2018,Information Technology,Projects,Silver Marlin Associates Ltd,IPO2012,17820.00,Not Applicable
Department for Business Energy and Industrial Strategy,Intellectual Property Office,16/04/2018,Information Technology,Projects,Deloitte MCS Limited,2410133427,179022.36,Not Applicable
Department for Business Energy and Industrial Strategy,Intellectual Property Office,27/04/2018,International Payments,International Policy Directorate,WIPO,CNTRW00002938,829855.80,Not Applicable
Department for Business Energy and Industrial Strategy,Intellectual Property Office,17/04/2018,Legal & Hearings,Patent Directorate,Government Legal Department,452038,2396.76,Not Applicable
Department for Business Energy and Industrial Strategy,Intellectual Property Office,17/04/2018,Legal & Hearings,Patent Directorate,Government Legal Department,452290,4875.00,Not Applicable
Department for Business Energy and Industrial Strategy,Intellectual Property Office,17/04/2018,Legal & Hearings,Trade Mark Directorate,Marten Walsh Cherer Ltd,98584,535.94,Not Applicable
Department for Business Energy and Industrial Strategy,Intellectual Property Office,17/04/2018,Legal & Hearings,Trade Mark Directorate,Government Legal Department,452038,123.66,Not Applicable
Department for Business Energy and Industrial Strategy,Intellectual Property Office,30/04/2018,Legal & Hearings,Trade Mark Directorate,Government Legal Department,452116,6815.64,Not Applicable
Department for Business Energy and Industrial Strategy,Intellectual Property Office,09/04/2018,Marketing & Publicity,Innovation Directorate,Holiday Inn Express,2018004879,2412.00,Not Applicable
Department for Business Energy and Industrial Strategy,Intellectual Property Office,03/04/2018,Marketing & Publicity,Innovation Directorate,Aardman Animations Ltd,35455,806.40,Not Applicable
Department for Business Energy and Industrial Strategy,Intellectual Property Office,11/04/2018,Marketing & Publicity,Innovation Directorate,Aardman Animations Ltd,35513,820.80,Not Applicable
Department for Business Energy and Industrial Strategy,Intellectual Property Office,20/04/2018,Marketing & Publicity,Innovation Directorate,FUTURE PUBLISHING LIMITED,FPL052707,603.00,Not Applicable
Department for Business Energy and Industrial Strategy,Intellectual Property Office,03/04/2018,Marketing & Publicity,Innovation Directorate,Bolt Removals Ltd,INV-001318,990.00,Not Applicable
Department for Business Energy and Industrial Strategy,Intellectual Property Office,09/04/2018,Marketing & Publicity,Innovation Directorate,Releasd Ltd,RD000839,5011.20,Not Applicable
Department for Business Energy and Industrial Strategy,Intellectual Property Office,20/04/2018,Marketing & Publicity,Innovation Directorate,Factiva Limited,79246922,846.14,Not Applicable
Department for Business Energy and Industrial Strategy,Intellectual Property Office,03/04/2018,Marketing & Publicity,Innovation Directorate,Innovate NE Limited,PRO 2018012,1140.00,Not Applicable
Department for Business Energy and Industrial Strategy,Intellectual Property Office,27/04/2018,Marketing & Publicity,Innovation Directorate,Find A Future t/a Worldskills UK,673,5040.00,Not Applicable
Department for Business Energy and Industrial Strategy,Intellectual Property Office,03/04/2018,Marketing & Publicity,Innovation Directorate,Venture Marketing Group Limited,12016,-2088.00,Not Applicable
Department for Business Energy and Industrial Strategy,Intellectual Property Office,03/04/2018,Marketing & Publicity,Innovation Directorate,Venture Marketing Group Limited,12018,-2088.00,Not Applicable
Department for Business Energy and Industrial Strategy,Intellectual Property Office,03/04/2018,Marketing & Publicity,Innovation Directorate,Venture Marketing Group Limited,65137,2088.00,Not Applicable
Department for Business Energy and Industrial Strategy,Intellectual Property Office,03/04/2018,Marketing & Publicity,Innovation Directorate,Venture Marketing Group Limited,65138,2088.00,Not Applicable
Department for Business Energy and Industrial Strategy,Intellectual Property Office,03/04/2018,Marketing & Publicity,Innovation Directorate,Venture Marketing Group Limited,65285,1250.00,Not Applicable
Department for Business Energy and Industrial Strategy,Intellectual Property Office,03/04/2018,Marketing & Publicity,Innovation Directorate,Venture Marketing Group Limited,65286,875.00,Not Applicable
Department for Business Energy and Industrial Strategy,Intellectual Property Office,03/04/2018,Marketing & Publicity,Innovation Directorate,Mosaic Events Ltd,NATEEX2015,1295.00,Not Applicable
Department for Business Energy and Industrial Strategy,Intellectual Property Office,05/04/2018,Miscellaneous Expenses General,Finance Directorate,British Standards Institution,400590179,790.80,Not Applicable
Department for Business Energy and Industrial Strategy,Intellectual Property Office,03/04/2018,Miscellaneous Expenses General,Finance Directorate,VALUATION OFFICE AGENCY,2.50001E+13,1084.32,Not Applicable
Department for Business Energy and Industrial Strategy,Intellectual Property Office,06/04/2018,Miscellaneous Expenses General,Innovation Directorate,Veezu Ltd T/A Dragon Taxis (Newpor,5477,343.20,Not Applicable
Department for Business Energy and Industrial Strategy,Intellectual Property Office,03/04/2018,Miscellaneous Expenses General,Innovation Directorate,TNS UK LTD,260213063,71928.00,Not Applicable
Department for Business Energy and Industrial Strategy,Intellectual Property Office,24/04/2018,Miscellaneous Expenses General,Innovation Directorate,Vinci Construction UK Ltd,18040033,507.80,Not Applicable
Department for Business Energy and Industrial Strategy,Intellectual Property Office,12/04/2018,Miscellaneous Expenses General,Innovation Directorate,University of Ulster,119218,29994.00,Not Applicable
Department for Business Energy and Industrial Strategy,Intellectual Property Office,26/04/2018,Miscellaneous Expenses General,International Policy Directorate,Eden Caterers Ltd,243403,2153.20,Not Applicable
Department for Business Energy and Industrial Strategy,Intellectual Property Office,26/04/2018,Miscellaneous Expenses General,International Policy Directorate,Eden Caterers Ltd,243404,1326.00,Not Applicable
Department for Business Energy and Industrial Strategy,Intellectual Property Office,25/04/2018,Miscellaneous Expenses General,IT Directorate,British Standards Institution,94993493,2529.60,Not Applicable
Department for Business Energy and Industrial Strategy,Intellectual Property Office,05/04/2018,Miscellaneous Expenses General,IT Directorate,SANDHILL CONSULTANTS LTD,IN4059292,10560.00,Not Applicable
Department for Business Energy and Industrial Strategy,Intellectual Property Office,03/04/2018,Miscellaneous Expenses General,IT Directorate,Responsiv Solutions Limited,RSL0469,2400.00,Not Applicable
Department for Business Energy and Industrial Strategy,Intellectual Property Office,03/04/2018,Miscellaneous Expenses General,IT Directorate,Responsiv Solutions Limited,RSL0471,1193.76,Not Applicable
Department for Business Energy and Industrial Strategy,Intellectual Property Office,03/04/2018,Miscellaneous Expenses General,IT Directorate,Responsiv Solutions Limited,RSL0472,94247.47,Not Applicable
Department for Business Energy and Industrial Strategy,Intellectual Property Office,24/04/2018,Miscellaneous Expenses General,IT Directorate,Vinci Construction UK Ltd,18040033,64.32,Not Applicable
Department for Business Energy and Industrial Strategy,Intellectual Property Office,18/04/2018,Miscellaneous Expenses General,IT Directorate,Acuma Solutions Limited,SIN017927,33390.00,Not Applicable
Department for Business Energy and Industrial Strategy,Intellectual Property Office,24/04/2018,Miscellaneous Expenses General,Patent Directorate,Vinci Construction UK Ltd,18040033,1068.24,Not Applicable
Department for Business Energy and Industrial Strategy,Intellectual Property Office,05/04/2018,Miscellaneous Expenses General,People Places & Serv Directorate,Cabinet Office,3717300,33811.20,Not Applicable
Department for Business Energy and Industrial Strategy,Intellectual Property Office,19/04/2018,Miscellaneous Expenses General,People Places & Serv Directorate,Cabinet Office,3718359,4857.84,Not Applicable
Department for Business Energy and Industrial Strategy,Intellectual Property Office,09/04/2018,Miscellaneous Expenses General,People Places & Serv Directorate,Capital Law LLP,60000336,2199.00,Not Applicable
Department for Business Energy and Industrial Strategy,Intellectual Property Office,20/04/2018,Miscellaneous Expenses General,People Places & Serv Directorate,Cardinus Risk Management Ltd,I-03241-Q9G2,1500.00,Not Applicable
Department for Business Energy and Industrial Strategy,Intellectual Property Office,03/04/2018,Miscellaneous Expenses General,People Places & Serv Directorate,K International PLC,I-2018-1092,2854.80,Not Applicable
Department for Business Energy and Industrial Strategy,Intellectual Property Office,09/04/2018,Miscellaneous Expenses General,People Places & Serv Directorate,Specialist Computer Centres Plc,OP-C156618,-705.60,Not Applicable
Department for Business Energy and Industrial Strategy,Intellectual Property Office,09/04/2018,Miscellaneous Expenses General,People Places & Serv Directorate,Specialist Computer Centres Plc,OP-M425611,4080.16,Not Applicable
Department for Business Energy and Industrial Strategy,Intellectual Property Office,26/04/2018,Miscellaneous Expenses General,People Places & Serv Directorate,Stonewall Equality Ltd,55997,3000.00,Not Applicable
Department for Business Energy and Industrial Strategy,Intellectual Property Office,05/04/2018,Miscellaneous Expenses General,People Places & Serv Directorate,Insight Health Screening,6894,2175.00,Not Applicable
Department for Business Energy and Industrial Strategy,Intellectual Property Office,05/04/2018,Miscellaneous Expenses General,People Places & Serv Directorate,RM Gilbert,SB050418,678.26,Not Applicable
Department for Business Energy and Industrial Strategy,Intellectual Property Office,05/04/2018,Miscellaneous Expenses General,People Places & Serv Directorate,Andrew Mackintosh,SB050418,1137.74,Not Applicable
Department for Business Energy and Industrial Strategy,Intellectual Property Office,16/04/2018,Miscellaneous Expenses General,People Places & Serv Directorate,BUSINESS DISABILITY FORUM,14506,5400.00,Not Applicable
Department for Business Energy and Industrial Strategy,Intellectual Property Office,24/04/2018,Miscellaneous Expenses General,People Places & Serv Directorate,Vinci Construction UK Ltd,18040033,1642.21,Not Applicable
Department for Business Energy and Industrial Strategy,Intellectual Property Office,24/04/2018,Miscellaneous Expenses General,People Places & Serv Directorate,Vinci Construction UK Ltd,18040033,180.08,Not Applicable
Department for Business Energy and Industrial Strategy,Intellectual Property Office,24/04/2018,Miscellaneous Expenses General,People Places & Serv Directorate,Vinci Construction UK Ltd,18040033,89.09,Not Applicable
Department for Business Energy and Industrial Strategy,Intellectual Property Office,18/04/2018,Miscellaneous Expenses General,People Places & Serv Directorate,Labyrinth Coaching & Consulting (Human C,401,2700.00,Not Applicable
Department for Business Energy and Industrial Strategy,Intellectual Property Office,19/04/2018,Miscellaneous Expenses General,People Places & Serv Directorate,Hive HR Ltd,INV-0942,570.14,Not Applicable
Department for Business Energy and Industrial Strategy,Intellectual Property Office,05/04/2018,Miscellaneous Expenses General,People Places & Serv Directorate,Ridan Composting Ltd,IPN472,3288.00,Not Applicable
Department for Business Energy and Industrial Strategy,Intellectual Property Office,17/04/2018,Miscellaneous Expenses General,People Places & Serv Directorate,DC Publishing Limited,DCP11668,978.00,Not Applicable
Department for Business Energy and Industrial Strategy,Intellectual Property Office,03/04/2018,Miscellaneous Expenses General,Projects,Responsiv Solutions Limited,RSL0474,11340.00,Not Applicable
Department for Business Energy and Industrial Strategy,Intellectual Property Office,24/04/2018,Miscellaneous Expenses General,Projects,Vinci Construction UK Ltd,18040033,74.48,Not Applicable
Department for Business Energy and Industrial Strategy,Intellectual Property Office,03/04/2018,Miscellaneous Expenses General,Projects,Deloitte MCS Limited,2410133393,91670.17,Not Applicable
Department for Business Energy and Industrial Strategy,Intellectual Property Office,18/04/2018,Miscellaneous Expenses General,Trade Mark Directorate,The Unity Brewhouse Ltd,EX GRATIA 180418,27603.00,Not Applicable
Department for Business Energy and Industrial Strategy,Intellectual Property Office,18/04/2018,Miscellaneous Expenses General,Trade Mark Directorate,Wales Quality Centre Ltd,11167,1213.70,Not Applicable
Department for Business Energy and Industrial Strategy,Intellectual Property Office,25/04/2018,Office Machinery,People Places & Serv Directorate,Xerox (UK) Ltd,1607964981,1310.40,Not Applicable
Department for Business Energy and Industrial Strategy,Intellectual Property Office,05/04/2018,Office Supplies,Finance Directorate,Banner Group Limited,1750402,821.03,Not Applicable
Department for Business Energy and Industrial Strategy,Intellectual Property Office,20/04/2018,Office Supplies,Finance Directorate,RR Donnelley UK Limited,4516778,2088.00,Not Applicable
Department for Business Energy and Industrial Strategy,Intellectual Property Office,05/04/2018,Office Supplies,Innovation Directorate,MUSO LONDON,MR49291,3600.00,Not Applicable
Department for Business Energy and Industrial Strategy,Intellectual Property Office,09/04/2018,Office Supplies,Patent Directorate,British Library,139798379,3887.71,Not Applicable
Department for Business Energy and Industrial Strategy,Intellectual Property Office,24/04/2018,Office Supplies,People Places & Serv Directorate,Antalis,7576700,768.76,Not Applicable
Department for Business Energy and Industrial Strategy,Intellectual Property Office,03/04/2018,Office Supplies,People Places & Serv Directorate,Antalis,7616595,1264.94,Not Applicable
Department for Business Energy and Industrial Strategy,Intellectual Property Office,11/04/2018,Office Supplies,People Places & Serv Directorate,Antalis,7623132,2140.15,Not Applicable
Department for Business Energy and Industrial Strategy,Intellectual Property Office,05/04/2018,Office Supplies,People Places & Serv Directorate,Antalis,7623976,768.76,Not Applicable
Department for Business Energy and Industrial Strategy,Intellectual Property Office,13/04/2018,Office Supplies,People Places & Serv Directorate,Antalis,7644142,768.76,Not Applicable
Department for Business Energy and Industrial Strategy,Intellectual Property Office,13/04/2018,Office Supplies,People Places & Serv Directorate,Antalis,7644143,869.82,Not Applicable
Department for Business Energy and Industrial Strategy,Intellectual Property Office,20/04/2018,Office Supplies,People Places & Serv Directorate,Antalis,7661428,768.76,Not Applicable
Department for Business Energy and Industrial Strategy,Intellectual Property Office,30/04/2018,Office Supplies,People Places & Serv Directorate,Antalis,7679030,768.76,Not Applicable
Department for Business Energy and Industrial Strategy,Intellectual Property Office,24/04/2018,Office Supplies,People Places & Serv Directorate,Vinci Construction UK Ltd,18040033,33.60,Not Applicable
Department for Business Energy and Industrial Strategy,Intellectual Property Office,09/04/2018,Pay Costs,Copyright and Enforcement Directorate,Police & Crime Commissioner Sussex,1800041461,2759.60,Not Applicable
Department for Business Energy and Industrial Strategy,Intellectual Property Office,30/04/2018,Pay Costs,Copyright and Enforcement Directorate,Police & Crime Commissioner Sussex,1800041922,2778.54,Not Applicable
Department for Business Energy and Industrial Strategy,Intellectual Property Office,10/04/2018,Pay Costs,IT Directorate,Brook Street (UK) Ltd,30958070,621.00,Not Applicable
Department for Business Energy and Industrial Strategy,Intellectual Property Office,10/04/2018,Pay Costs,IT Directorate,Brook Street (UK) Ltd,30958071,647.22,Not Applicable
Department for Business Energy and Industrial Strategy,Intellectual Property Office,27/04/2018,Pay Costs,IT Directorate,Brook Street (UK) Ltd,30982134,594.07,Not Applicable
Department for Business Energy and Industrial Strategy,Intellectual Property Office,25/04/2018,Pay Costs,IT Directorate,Brook Street (UK) Ltd,30994889,607.62,Not Applicable
Department for Business Energy and Industrial Strategy,Intellectual Property Office,25/04/2018,Pay Costs,IT Directorate,Brook Street (UK) Ltd,30994890,603.38,Not Applicable
Department for Business Energy and Industrial Strategy,Intellectual Property Office,04/04/2018,Pay Costs,Patent Directorate,Acorn Recruitment Ltd,870839,648.46,Not Applicable
Department for Business Energy and Industrial Strategy,Intellectual Property Office,04/04/2018,Pay Costs,Patent Directorate,Acorn Recruitment Ltd,870840,626.41,Not Applicable
Department for Business Energy and Industrial Strategy,Intellectual Property Office,11/04/2018,Pay Costs,Patent Directorate,Acorn Recruitment Ltd,871522,518.76,Not Applicable
Department for Business Energy and Industrial Strategy,Intellectual Property Office,17/04/2018,Pay Costs,Patent Directorate,Acorn Recruitment Ltd,872259,518.04,Not Applicable
Department for Business Energy and Industrial Strategy,Intellectual Property Office,25/04/2018,Pay Costs,Patent Directorate,Acorn Recruitment Ltd,872952,648.46,Not Applicable
Department for Business Energy and Industrial Strategy,Intellectual Property Office,25/04/2018,Pay Costs,Patent Directorate,Acorn Recruitment Ltd,872953,577.44,Not Applicable
Department for Business Energy and Industrial Strategy,Intellectual Property Office,10/04/2018,Pay Costs,Patent Directorate,Brook Street (UK) Ltd,30958050,524.09,Not Applicable
Department for Business Energy and Industrial Strategy,Intellectual Property Office,10/04/2018,Pay Costs,Patent Directorate,Brook Street (UK) Ltd,30958051,558.90,Not Applicable
Department for Business Energy and Industrial Strategy,Intellectual Property Office,10/04/2018,Pay Costs,Patent Directorate,Brook Street (UK) Ltd,30958052,612.72,Not Applicable
Department for Business Energy and Industrial Strategy,Intellectual Property Office,10/04/2018,Pay Costs,Patent Directorate,Brook Street (UK) Ltd,30958053,527.40,Not Applicable
Department for Business Energy and Industrial Strategy,Intellectual Property Office,10/04/2018,Pay Costs,Patent Directorate,Brook Street (UK) Ltd,30958054,557.54,Not Applicable
Department for Business Energy and Industrial Strategy,Intellectual Property Office,10/04/2018,Pay Costs,Patent Directorate,Brook Street (UK) Ltd,30958056,557.54,Not Applicable
Department for Business Energy and Industrial Strategy,Intellectual Property Office,10/04/2018,Pay Costs,Patent Directorate,Brook Street (UK) Ltd,30958057,550.12,Not Applicable
Department for Business Energy and Industrial Strategy,Intellectual Property Office,10/04/2018,Pay Costs,Patent Directorate,Brook Street (UK) Ltd,30958058,550.12,Not Applicable
Department for Business Energy and Industrial Strategy,Intellectual Property Office,10/04/2018,Pay Costs,Patent Directorate,Brook Street (UK) Ltd,30958060,612.72,Not Applicable
Department for Business Energy and Industrial Strategy,Intellectual Property Office,10/04/2018,Pay Costs,Patent Directorate,Brook Street (UK) Ltd,30958065,557.54,Not Applicable
Department for Business Energy and Industrial Strategy,Intellectual Property Office,10/04/2018,Pay Costs,Patent Directorate,Brook Street (UK) Ltd,30958068,612.72,Not Applicable
Department for Business Energy and Industrial Strategy,Intellectual Property Office,10/04/2018,Pay Costs,Patent Directorate,Brook Street (UK) Ltd,30958069,523.03,Not Applicable
Department for Business Energy and Industrial Strategy,Intellectual Property Office,10/04/2018,Pay Costs,Patent Directorate,Brook Street (UK) Ltd,30958072,550.12,Not Applicable
Department for Business Energy and Industrial Strategy,Intellectual Property Office,12/04/2018,Pay Costs,Patent Directorate,Brook Street (UK) Ltd,30958074,613.67,Not Applicable
Department for Business Energy and Industrial Strategy,Intellectual Property Office,16/04/2018,Pay Costs,Patent Directorate,Brook Street (UK) Ltd,30970765,694.66,Not Applicable
Department for Business Energy and Industrial Strategy,Intellectual Property Office,12/04/2018,Pay Costs,Patent Directorate,Brook Street (UK) Ltd,30970770,681.07,Not Applicable
Department for Business Energy and Industrial Strategy,Intellectual Property Office,25/04/2018,Pay Costs,Patent Directorate,Brook Street (UK) Ltd,30982114,512.90,Not Applicable
Department for Business Energy and Industrial Strategy,Intellectual Property Office,25/04/2018,Pay Costs,Patent Directorate,Brook Street (UK) Ltd,30982122,500.40,Not Applicable
Department for Business Energy and Industrial Strategy,Intellectual Property Office,25/04/2018,Pay Costs,Patent Directorate,Brook Street (UK) Ltd,30982128,505.03,Not Applicable
Department for Business Energy and Industrial Strategy,Intellectual Property Office,24/04/2018,Pay Costs,Patent Directorate,Brook Street (UK) Ltd,30994871,531.00,Not Applicable
Department for Business Energy and Industrial Strategy,Intellectual Property Office,26/04/2018,Pay Costs,Patent Directorate,Brook Street (UK) Ltd,30994872,642.18,Not Applicable
Department for Business Energy and Industrial Strategy,Intellectual Property Office,24/04/2018,Pay Costs,Patent Directorate,Brook Street (UK) Ltd,30994874,561.14,Not Applicable
Department for Business Energy and Industrial Strategy,Intellectual Property Office,25/04/2018,Pay Costs,Patent Directorate,Brook Street (UK) Ltd,30994875,553.67,Not Applicable
Department for Business Energy and Industrial Strategy,Intellectual Property Office,25/04/2018,Pay Costs,Patent Directorate,Brook Street (UK) Ltd,30994876,561.14,Not Applicable
Department for Business Energy and Industrial Strategy,Intellectual Property Office,25/04/2018,Pay Costs,Patent Directorate,Brook Street (UK) Ltd,30994877,553.67,Not Applicable
Department for Business Energy and Industrial Strategy,Intellectual Property Office,25/04/2018,Pay Costs,Patent Directorate,Brook Street (UK) Ltd,30994878,553.67,Not Applicable
Department for Business Energy and Industrial Strategy,Intellectual Property Office,25/04/2018,Pay Costs,Patent Directorate,Brook Street (UK) Ltd,30994879,617.16,Not Applicable
Department for Business Energy and Industrial Strategy,Intellectual Property Office,25/04/2018,Pay Costs,Patent Directorate,Brook Street (UK) Ltd,30994881,553.67,Not Applicable
Department for Business Energy and Industrial Strategy,Intellectual Property Office,25/04/2018,Pay Costs,Patent Directorate,Brook Street (UK) Ltd,30994885,538.70,Not Applicable
Department for Business Energy and Industrial Strategy,Intellectual Property Office,25/04/2018,Pay Costs,Patent Directorate,Brook Street (UK) Ltd,30994886,624.01,Not Applicable
Department for Business Energy and Industrial Strategy,Intellectual Property Office,25/04/2018,Pay Costs,Patent Directorate,Brook Street (UK) Ltd,30994888,617.16,Not Applicable
Department for Business Energy and Industrial Strategy,Intellectual Property Office,25/04/2018,Pay Costs,Patent Directorate,Brook Street (UK) Ltd,30994891,553.67,Not Applicable
Department for Business Energy and Industrial Strategy,Intellectual Property Office,25/04/2018,Pay Costs,Patent Directorate,Brook Street (UK) Ltd,30994893,532.80,Not Applicable
Department for Business Energy and Industrial Strategy,Intellectual Property Office,04/04/2018,Pay Costs,People Places & Serv Directorate,Acorn Recruitment Ltd,870838,535.38,Not Applicable
Department for Business Energy and Industrial Strategy,Intellectual Property Office,10/04/2018,Pay Costs,People Places & Serv Directorate,Brook Street (UK) Ltd,30958064,687.24,Not Applicable
Department for Business Energy and Industrial Strategy,Intellectual Property Office,10/04/2018,Pay Costs,People Places & Serv Directorate,Brook Street (UK) Ltd,30970761,542.34,Not Applicable
Department for Business Energy and Industrial Strategy,Intellectual Property Office,27/04/2018,Pay Costs,People Places & Serv Directorate,Brook Street (UK) Ltd,30982127,572.62,Not Applicable
Department for Business Energy and Industrial Strategy,Intellectual Property Office,27/04/2018,Pay Costs,People Places & Serv Directorate,Brook Street (UK) Ltd,30987778,-687.24,Not Applicable
Department for Business Energy and Industrial Strategy,Intellectual Property Office,27/04/2018,Pay Costs,People Places & Serv Directorate,Brook Street (UK) Ltd,30987822,-542.34,Not Applicable
Department for Business Energy and Industrial Strategy,Intellectual Property Office,27/04/2018,Pay Costs,People Places & Serv Directorate,Brook Street (UK) Ltd,30988279,720.11,Not Applicable
Department for Business Energy and Industrial Strategy,Intellectual Property Office,27/04/2018,Pay Costs,People Places & Serv Directorate,Brook Street (UK) Ltd,30988323,568.27,Not Applicable
Department for Business Energy and Industrial Strategy,Intellectual Property Office,25/04/2018,Pay Costs,People Places & Serv Directorate,Brook Street (UK) Ltd,30994895,537.91,Not Applicable
Department for Business Energy and Industrial Strategy,Intellectual Property Office,17/04/2018,Pay Costs,People Places & Serv Directorate,Sodexo Motivation Solutions UK Ltd,3423677,8727.31,Not Applicable
Department for Business Energy and Industrial Strategy,Intellectual Property Office,17/04/2018,Pay Costs,People Places & Serv Directorate,Sodexo Motivation Solutions UK Ltd,3423707,12376.83,Not Applicable
Department for Business Energy and Industrial Strategy,Intellectual Property Office,19/04/2018,Pay Costs,People Places & Serv Directorate,Acorns Nurseries Ltd,13504,847.00,Not Applicable
Department for Business Energy and Industrial Strategy,Intellectual Property Office,06/04/2018,Postage & Delivery Costs,People Places & Serv Directorate,DHL International (UK) Ltd,BRS1353665,737.90,Not Applicable
Department for Business Energy and Industrial Strategy,Intellectual Property Office,13/04/2018,Postage & Delivery Costs,People Places & Serv Directorate,DHL International (UK) Ltd,BRS1382021,761.24,Not Applicable
Department for Business Energy and Industrial Strategy,Intellectual Property Office,18/04/2018,Postage & Delivery Costs,People Places & Serv Directorate,DHL International (UK) Ltd,BRS1399388,3039.22,Not Applicable
Department for Business Energy and Industrial Strategy,Intellectual Property Office,26/04/2018,Postage & Delivery Costs,People Places & Serv Directorate,DHL International (UK) Ltd,BRS1417711,2762.93,Not Applicable
Department for Business Energy and Industrial Strategy,Intellectual Property Office,27/04/2018,Postage & Delivery Costs,People Places & Serv Directorate,Neopost Finance Ltd,91778749-13APR18,10000.00,Not Applicable
Department for Business Energy and Industrial Strategy,Intellectual Property Office,10/04/2018,Postage & Delivery Costs,People Places & Serv Directorate,Parcelforce Worldwide,9056344229,1027.89,Not Applicable
Department for Business Energy and Industrial Strategy,Intellectual Property Office,06/04/2018,Postage & Delivery Costs,People Places & Serv Directorate,Royal Mail,9056309424,2268.62,Not Applicable
Department for Business Energy and Industrial Strategy,Intellectual Property Office,17/04/2018,Postage & Delivery Costs,People Places & Serv Directorate,Royal Mail,9056383893,1863.01,Not Applicable
Department for Business Energy and Industrial Strategy,Intellectual Property Office,09/04/2018,Postage & Delivery Costs,People Places & Serv Directorate,CitySprint (UK) Ltd,2514285,7619.12,Not Applicable
Department for Business Energy and Industrial Strategy,Intellectual Property Office,09/04/2018,Staff Costs,Innovation Directorate,National Inst Economic & Social Research,INV-0856,528.00,Not Applicable
Department for Business Energy and Industrial Strategy,Intellectual Property Office,26/04/2018,Staff Costs,IT Directorate,QA Ltd,ISL147650,24480.00,Not Applicable
Department for Business Energy and Industrial Strategy,Intellectual Property Office,20/04/2018,Staff Costs,IT Directorate,TeckChek Europe Ltd,180439,3000.00,Not Applicable
Department for Business Energy and Industrial Strategy,Intellectual Property Office,05/04/2018,Staff Costs,IT Directorate,31 Media Limited,7611,666.00,Not Applicable
Department for Business Energy and Industrial Strategy,Intellectual Property Office,13/04/2018,Staff Costs,Patent Directorate,Korn Ferry Hay Group (CSL),1195023525,1800.00,Not Applicable
Department for Business Energy and Industrial Strategy,Intellectual Property Office,10/04/2018,Staff Costs,People Places & Serv Directorate,British Computer Society,1390440,750.60,Not Applicable
Department for Business Energy and Industrial Strategy,Intellectual Property Office,03/04/2018,Staff Costs,People Places & Serv Directorate,CIPFA,5241612,1200.00,Not Applicable
Department for Business Energy and Industrial Strategy,Intellectual Property Office,03/04/2018,Staff Costs,People Places & Serv Directorate,CIPFA,5241613,4509.24,Not Applicable
Department for Business Energy and Industrial Strategy,Intellectual Property Office,03/04/2018,Staff Costs,People Places & Serv Directorate,CIPFA,5241614,1200.00,Not Applicable
Department for Business Energy and Industrial Strategy,Intellectual Property Office,30/04/2018,Staff Costs,People Places & Serv Directorate,Knowledge Academy,262294,1194.00,Not Applicable
Department for Business Energy and Industrial Strategy,Intellectual Property Office,23/04/2018,Staff Costs,People Places & Serv Directorate,Thomas Carroll Management Services,7034,540.00,Not Applicable
Department for Business Energy and Industrial Strategy,Intellectual Property Office,17/04/2018,Staff Costs,People Places & Serv Directorate,The Clive Davis Partnership Ltd.,CDSC-2849,1440.00,Not Applicable
Department for Business Energy and Industrial Strategy,Intellectual Property Office,17/04/2018,Staff Costs,People Places & Serv Directorate,The Clive Davis Partnership Ltd.,CDSC-2850,1440.00,Not Applicable
Department for Business Energy and Industrial Strategy,Intellectual Property Office,17/04/2018,Staff Costs,People Places & Serv Directorate,The Clive Davis Partnership Ltd.,CDSC-2852,2880.00,Not Applicable
Department for Business Energy and Industrial Strategy,Intellectual Property Office,26/04/2018,Staff Costs,People Places & Serv Directorate,Psysoft Ltd,4025,1620.00,Not Applicable
Department for Business Energy and Industrial Strategy,Intellectual Property Office,25/04/2018,Staff Costs,People Places & Serv Directorate,University of South Wales (Pontypr,41301,1725.00,Not Applicable
Department for Business Energy and Industrial Strategy,Intellectual Property Office,18/04/2018,Staff Costs,People Places & Serv Directorate,Involve Me Training and Developmen,228,1800.00,Not Applicable
Department for Business Energy and Industrial Strategy,Intellectual Property Office,18/04/2018,Staff Costs,People Places & Serv Directorate,Involve Me Training and Developmen,229,600.00,Not Applicable
Department for Business Energy and Industrial Strategy,Intellectual Property Office,18/04/2018,Staff Costs,People Places & Serv Directorate,Involve Me Training and Developmen,230,600.00,Not Applicable
Department for Business Energy and Industrial Strategy,Intellectual Property Office,18/04/2018,Staff Costs,People Places & Serv Directorate,Involve Me Training and Developmen,231,600.00,Not Applicable
Department for Business Energy and Industrial Strategy,Intellectual Property Office,18/04/2018,Staff Costs,People Places & Serv Directorate,Involve Me Training and Developmen,232,600.00,Not Applicable
Department for Business Energy and Industrial Strategy,Intellectual Property Office,25/04/2018,Staff Costs,People Places & Serv Directorate,Involve Me Training and Developmen,241,600.00,Not Applicable
Department for Business Energy and Industrial Strategy,Intellectual Property Office,13/04/2018,Staff Costs,People Places & Serv Directorate,UK Trade & Investment,6.2311E+11,7971.11,Not Applicable
Department for Business Energy and Industrial Strategy,Intellectual Property Office,13/04/2018,Staff Costs,People Places & Serv Directorate,UK Trade & Investment,6.2311E+11,6951.11,Not Applicable
Department for Business Energy and Industrial Strategy,Intellectual Property Office,13/04/2018,Staff Costs,People Places & Serv Directorate,UK Trade & Investment,6.2312E+11,-7971.11,Not Applicable
Department for Business Energy and Industrial Strategy,Intellectual Property Office,19/04/2018,Staff Costs,People Places & Serv Directorate,JL Training & Consultancy,1551,780.00,Not Applicable
Department for Business Energy and Industrial Strategy,Intellectual Property Office,18/04/2018,Staff Costs,People Places & Serv Directorate,DANDAD Ltd,SIN004162,2064.00,Not Applicable
Department for Business Energy and Industrial Strategy,Intellectual Property Office,17/04/2018,Staff Costs,People Places & Serv Directorate,DANDAD Ltd,SON004141,11070.00,Not Applicable
Department for Business Energy and Industrial Strategy,Intellectual Property Office,03/04/2018,Staff Costs,People Places & Serv Directorate,Bristol Management Centre,137800/3/4,2486.16,Not Applicable
Department for Business Energy and Industrial Strategy,Intellectual Property Office,03/04/2018,Staff Costs,People Places & Serv Directorate,Bristol Management Centre,13841XJONES,1318.49,Not Applicable
Department for Business Energy and Industrial Strategy,Intellectual Property Office,12/04/2018,Staff Costs,People Places & Serv Directorate,People Untapped Limited,INV-0453,5051.14,Not Applicable
Department for Business Energy and Industrial Strategy,Intellectual Property Office,24/04/2018,Staff Costs,People Places & Serv Directorate,True Resilience Limited,TR054,736.80,Not Applicable
Department for Business Energy and Industrial Strategy,Intellectual Property Office,24/04/2018,Staff Costs,People Places & Serv Directorate,True Resilience Limited,TR056,929.92,Not Applicable
Department for Business Energy and Industrial Strategy,Intellectual Property Office,10/04/2018,Staff Costs,People Places & Serv Directorate,Tracy Mountain,2,2400.00,Not Applicable
Department for Business Energy and Industrial Strategy,Intellectual Property Office,18/04/2018,Staff Costs,People Places & Serv Directorate,Labyrinth Coaching & Consulting (Human C,398,7031.62,Not Applicable
Department for Business Energy and Industrial Strategy,Intellectual Property Office,18/04/2018,Staff Costs,People Places & Serv Directorate,Catherine Burton,1163,4500.00,Not Applicable
Department for Business Energy and Industrial Strategy,Intellectual Property Office,30/04/2018,Staff Costs,People Places & Serv Directorate,British Institute of Facilities Manageme,2095639-10862313,900.00,Not Applicable
Department for Business Energy and Industrial Strategy,Intellectual Property Office,30/04/2018,Supporting UK Business,Copyright and Enforcement Directorate,City of London Police,4221046,452662.68,Not Applicable
Department for Business Energy and Industrial Strategy,Intellectual Property Office,12/04/2018,Supporting UK Business,Copyright and Enforcement Directorate,TREBLE 5 TREBLE 1 LTD,SIT003605,7200.00,Not Applicable
Department for Business Energy and Industrial Strategy,Intellectual Property Office,10/04/2018,Supporting UK Business,Innovation Directorate,Creation IP Ltd,IV2664,2600.00,Not Applicable
Department for Business Energy and Industrial Strategy,Intellectual Property Office,06/04/2018,Supporting UK Business,Innovation Directorate,Dehns,383436,2600.00,Not Applicable
Department for Business Energy and Industrial Strategy,Intellectual Property Office,04/04/2018,Supporting UK Business,Innovation Directorate,Greaves Brewster LLP,23868,2600.00,Not Applicable
Department for Business Energy and Industrial Strategy,Intellectual Property Office,10/04/2018,Supporting UK Business,Innovation Directorate,Chapman IP Ltd,18420,2600.00,Not Applicable
Department for Business Energy and Industrial Strategy,Intellectual Property Office,13/04/2018,Supporting UK Business,Innovation Directorate,Marks & Clerk LLP,1152888,2600.00,Not Applicable
Department for Business Energy and Industrial Strategy,Intellectual Property Office,19/04/2018,Supporting UK Business,Innovation Directorate,Marks & Clerk LLP,7091974,2600.00,Not Applicable
Department for Business Energy and Industrial Strategy,Intellectual Property Office,06/04/2018,Supporting UK Business,Innovation Directorate,Marks & Clerk LLP,7093921,2600.00,Not Applicable
Department for Business Energy and Industrial Strategy,Intellectual Property Office,05/04/2018,Supporting UK Business,Innovation Directorate,Marks & Clerk LLP,7093973,2600.00,Not Applicable
Department for Business Energy and Industrial Strategy,Intellectual Property Office,05/04/2018,Supporting UK Business,Innovation Directorate,Marks & Clerk LLP,7093974,2600.00,Not Applicable
Department for Business Energy and Industrial Strategy,Intellectual Property Office,19/04/2018,Supporting UK Business,Innovation Directorate,LAWRIE INTELLECTUAL PROPERTY,111272,2600.00,Not Applicable
Department for Business Energy and Industrial Strategy,Intellectual Property Office,04/04/2018,Supporting UK Business,Innovation Directorate,LAWRIE INTELLECTUAL PROPERTY,111319,2600.00,Not Applicable
Department for Business Energy and Industrial Strategy,Intellectual Property Office,13/04/2018,Supporting UK Business,Innovation Directorate,LAWRIE INTELLECTUAL PROPERTY,111439,2600.00,Not Applicable
Department for Business Energy and Industrial Strategy,Intellectual Property Office,13/04/2018,Supporting UK Business,Innovation Directorate,LAWRIE INTELLECTUAL PROPERTY,111537,2600.00,Not Applicable
Department for Business Energy and Industrial Strategy,Intellectual Property Office,05/04/2018,Supporting UK Business,Innovation Directorate,LAWRIE INTELLECTUAL PROPERTY,111557,2600.00,Not Applicable
Department for Business Energy and Industrial Strategy,Intellectual Property Office,06/04/2018,Supporting UK Business,Innovation Directorate,LAWRIE INTELLECTUAL PROPERTY,111594,2600.00,Not Applicable
Department for Business Energy and Industrial Strategy,Intellectual Property Office,11/04/2018,Supporting UK Business,Innovation Directorate,Thorntons,950773,2600.00,Not Applicable
Department for Business Energy and Industrial Strategy,Intellectual Property Office,23/04/2018,Supporting UK Business,Innovation Directorate,MacRoberts LLP,I-18-2313,2600.00,Not Applicable
Department for Business Energy and Industrial Strategy,Intellectual Property Office,06/04/2018,Supporting UK Business,Innovation Directorate,Coller IP Management Ltd,10148,2600.00,Not Applicable
Department for Business Energy and Industrial Strategy,Intellectual Property Office,23/04/2018,Supporting UK Business,Innovation Directorate,Murgitroyd & Company Ltd,06113A-18,2599.99,Not Applicable
Department for Business Energy and Industrial Strategy,Intellectual Property Office,10/04/2018,Supporting UK Business,Innovation Directorate,Murgitroyd & Company Ltd,44382A-17,2599.99,Not Applicable
Department for Business Energy and Industrial Strategy,Intellectual Property Office,13/04/2018,Supporting UK Business,Innovation Directorate,Cloch Solicitors,18-0011,2600.00,Not Applicable
Department for Business Energy and Industrial Strategy,Intellectual Property Office,06/04/2018,Supporting UK Business,Innovation Directorate,K. W. Peter & Co,101898,2600.00,Not Applicable
Department for Business Energy and Industrial Strategy,Intellectual Property Office,26/04/2018,Supporting UK Business,Innovation Directorate,Scintilla,INV-01262,2600.00,Not Applicable
Department for Business Energy and Industrial Strategy,Intellectual Property Office,03/04/2018,Supporting UK Business,Innovation Directorate,Scintilla,INV-01264,2600.00,Not Applicable
Department for Business Energy and Industrial Strategy,Intellectual Property Office,13/04/2018,Supporting UK Business,Innovation Directorate,Urquhart Dykes & Lord LLP,476763,2600.00,Not Applicable
Department for Business Energy and Industrial Strategy,Intellectual Property Office,19/04/2018,Supporting UK Business,Innovation Directorate,Hutchinson IP Ltd,3433,2600.00,Not Applicable
Department for Business Energy and Industrial Strategy,Intellectual Property Office,10/04/2018,Supporting UK Business,Innovation Directorate,Keltie LLP,126668,2599.99,Not Applicable
Department for Business Energy and Industrial Strategy,Intellectual Property Office,26/04/2018,Supporting UK Business,Innovation Directorate,Brooke-Jones Ltd,10471,2600.00,Not Applicable
Department for Business Energy and Industrial Strategy,Intellectual Property Office,10/04/2018,Supporting UK Business,Innovation Directorate,HFG Limited,477837,2600.00,Not Applicable
Department for Business Energy and Industrial Strategy,Intellectual Property Office,06/04/2018,Supporting UK Business,Innovation Directorate,The IP Asset Partnership Ltd,6177,2600.00,Not Applicable
Department for Business Energy and Industrial Strategy,Intellectual Property Office,13/04/2018,Supporting UK Business,Innovation Directorate,Clarion Solicitors Limited,125419,2600.00,Not Applicable
Department for Business Energy and Industrial Strategy,Intellectual Property Office,10/04/2018,Supporting UK Business,Innovation Directorate,Barker Brettell LLP,340284,2600.00,Not Applicable
Department for Business Energy and Industrial Strategy,Intellectual Property Office,11/04/2018,Supporting UK Business,Innovation Directorate,Dallas McMillan,DMH-AD001-1,2600.00,Not Applicable
Department for Business Energy and Industrial Strategy,Intellectual Property Office,10/04/2018,Supporting UK Business,Innovation Directorate,Reddie & Grose LLP,222536,2600.00,Not Applicable
Department for Business Energy and Industrial Strategy,Intellectual Property Office,03/04/2018,Supporting UK Business,International Policy Directorate,FOREIGN & COMMONWEALTH OFFICE,1102806,52897.51,Not Applicable
Department for Business Energy and Industrial Strategy,Intellectual Property Office,13/04/2018,Supporting UK Business,International Policy Directorate,FOREIGN & COMMONWEALTH OFFICE,1103010,522.81,Not Applicable
Department for Business Energy and Industrial Strategy,Intellectual Property Office,13/04/2018,Supporting UK Business,International Policy Directorate,FOREIGN & COMMONWEALTH OFFICE,1103029,10076.82,Not Applicable
Department for Business Energy and Industrial Strategy,Intellectual Property Office,18/04/2018,Supporting UK Business,International Policy Directorate,FOREIGN & COMMONWEALTH OFFICE,1103121,68962.01,Not Applicable
Department for Business Energy and Industrial Strategy,Intellectual Property Office,17/04/2018,Supporting UK Business,International Policy Directorate,FOREIGN & COMMONWEALTH OFFICE,1103175,1721.39,Not Applicable
Department for Business Energy and Industrial Strategy,Intellectual Property Office,25/04/2018,Supporting UK Business,International Policy Directorate,FOREIGN & COMMONWEALTH OFFICE,1103314,16412.71,Not Applicable
Department for Business Energy and Industrial Strategy,Intellectual Property Office,25/04/2018,Supporting UK Business,International Policy Directorate,FOREIGN & COMMONWEALTH OFFICE,1103392,-15250.95,Not Applicable
Department for Business Energy and Industrial Strategy,Intellectual Property Office,11/04/2018,Telecoms,IT Directorate,British  Telecom,GP00002104M056YD,3056.23,Not Applicable
Department for Business Energy and Industrial Strategy,Intellectual Property Office,04/04/2018,Telecoms,IT Directorate,British  Telecom,I00147-13MAR18,604.36,Not Applicable
Department for Business Energy and Industrial Strategy,Intellectual Property Office,23/04/2018,Telecoms,IT Directorate,British  Telecom,Q025 O7-19APR,3000.00,Not Applicable
Department for Business Energy and Industrial Strategy,Intellectual Property Office,23/04/2018,Telecoms,IT Directorate,British  Telecom,VP02239170M19601,5258.50,Not Applicable
Department for Business Energy and Industrial Strategy,Intellectual Property Office,09/04/2018,Telecoms,IT Directorate,LA International Computer Consulta,LA486786,2832.19,Not Applicable
Department for Business Energy and Industrial Strategy,Intellectual Property Office,26/04/2018,Telecoms,IT Directorate,Vodafone Corporate Ltd,87655830,4525.34,Not Applicable
Department for Business Energy and Industrial Strategy,Intellectual Property Office,05/04/2018,Telecoms,IT Directorate,ZEN INTERNET LIMITED,24955300,1327.62,Not Applicable
Department for Business Energy and Industrial Strategy,Intellectual Property Office,17/04/2018,Telecoms,IT Directorate,VIRGIN MEDIA,925289-15FEB,24000.00,Not Applicable
Department for Business Energy and Industrial Strategy,Intellectual Property Office,25/04/2018,Telecoms,IT Directorate,EE Ltd,1272885496,7478.00,Not Applicable
Department for Business Energy and Industrial Strategy,Intellectual Property Office,09/04/2018,Telecoms,IT Directorate,Personal expenses,UK10-012018-2216,15834.23,Not Applicable
Department for Business Energy and Industrial Strategy,Intellectual Property Office,09/04/2018,Telecoms,IT Directorate,Personal expenses,UK10-012018-3410,3322.08,Not Applicable
Department for Business Energy and Industrial Strategy,Intellectual Property Office,09/04/2018,Telecoms,IT Directorate,Colt Technology Services,2.0181E+12,600.00,Not Applicable
Department for Business Energy and Industrial Strategy,Intellectual Property Office,04/04/2018,Travel & Subsistence,Copyright and Enforcement Directorate,Personal expenses,OS000000642,564.55,Not Applicable
Department for Business Energy and Industrial Strategy,Intellectual Property Office,06/04/2018,Travel & Subsistence,Copyright and Enforcement Directorate,Veezu Ltd T/A Dragon Taxis (Newpor,5477,117.60,Not Applicable
Department for Business Energy and Industrial Strategy,Intellectual Property Office,06/04/2018,Travel & Subsistence,Copyright and Enforcement Directorate,Veezu Ltd T/A Dragon Taxis (Newpor,5477,225.72,Not Applicable
Department for Business Energy and Industrial Strategy,Intellectual Property Office,06/04/2018,Travel & Subsistence,Innovation Directorate,Veezu Ltd T/A Dragon Taxis (Newpor,5477,91.92,Not Applicable
Department for Business Energy and Industrial Strategy,Intellectual Property Office,06/04/2018,Travel & Subsistence,Innovation Directorate,Veezu Ltd T/A Dragon Taxis (Newpor,5477,6.60,Not Applicable
Department for Business Energy and Industrial Strategy,Intellectual Property Office,06/04/2018,Travel & Subsistence,Innovation Directorate,Veezu Ltd T/A Dragon Taxis (Newpor,5477,21.00,Not Applicable
Department for Business Energy and Industrial Strategy,Intellectual Property Office,06/04/2018,Travel & Subsistence,Innovation Directorate,Veezu Ltd T/A Dragon Taxis (Newpor,5477,81.60,Not Applicable
Department for Business Energy and Industrial Strategy,Intellectual Property Office,06/04/2018,Travel & Subsistence,International Policy Directorate,Veezu Ltd T/A Dragon Taxis (Newpor,5477,56.16,Not Applicable
Department for Business Energy and Industrial Strategy,Intellectual Property Office,27/04/2018,Travel & Subsistence,IT Directorate,Personal expenses,UK000003591,557.66,Not Applicable
Department for Business Energy and Industrial Strategy,Intellectual Property Office,06/04/2018,Travel & Subsistence,IT Directorate,Veezu Ltd T/A Dragon Taxis (Newpor,5477,35.28,Not Applicable
Department for Business Energy and Industrial Strategy,Intellectual Property Office,27/04/2018,Travel & Subsistence,People Places & Serv Directorate,Zenith,83570,1033.20,Not Applicable
Department for Business Energy and Industrial Strategy,Intellectual Property Office,06/04/2018,Travel & Subsistence,People Places & Serv Directorate,Veezu Ltd T/A Dragon Taxis (Newpor,5477,7.80,Not Applicable
Department for Business Energy and Industrial Strategy,Intellectual Property Office,06/04/2018,Travel & Subsistence,People Places & Serv Directorate,Veezu Ltd T/A Dragon Taxis (Newpor,5477,550.14,Not Applicable
Department for Business Energy and Industrial Strategy,Intellectual Property Office,06/04/2018,Travel & Subsistence,People Places & Serv Directorate,Veezu Ltd T/A Dragon Taxis (Newpor,5477,323.10,Not Applicable
Department for Business Energy and Industrial Strategy,Intellectual Property Office,06/04/2018,Travel & Subsistence,Projects,Veezu Ltd T/A Dragon Taxis (Newpor,5477,6.96,Not Applicable
Department for Business Energy and Industrial Strategy,Intellectual Property Office,06/04/2018,Travel & Subsistence,Trade Mark Directorate,Veezu Ltd T/A Dragon Taxis (Newpor,5477,7.80,Not Applicable
Department for Business Energy and Industrial Strategy,Intellectual Property Office,06/04/2018,Travel & Subsistence,Trade Mark Directorate,Veezu Ltd T/A Dragon Taxis (Newpor,5477,61.20,Not Applicable
Department for Business Energy and Industrial Strategy,Intellectual Property Office,02/04/2018,Software Maintenance,IT Directorate,Amazon Svcs Eu-Uk Amazon.,H57720180404knkdoglql,36.65,Not Applicable
Department for Business Energy and Industrial Strategy,Intellectual Property Office,02/04/2018,Entertainment,Innovation Directorate,Amazon Svcs Eu-Uk Amazon.,H57720180404hcbjxnhwm,34.99,Not Applicable
Department for Business Energy and Industrial Strategy,Intellectual Property Office,02/04/2018,Entertainment,Innovation Directorate,Amazon Svcs Eu-Uk Amazon.,H57720180404qenuwhvwk,69.98,Not Applicable
Department for Business Energy and Industrial Strategy,Intellectual Property Office,02/04/2018,Entertainment,Innovation Directorate,Amazon Svcs Eu-Uk Amazon.,H57720180404sqqknqigk,34.99,Not Applicable
Department for Business Energy and Industrial Strategy,Intellectual Property Office,02/04/2018,Advertising Distribution,Innovation Directorate,Facebk Tgpzfesn62,H57720180404oyauxskqj,20.00,Not Applicable
Department for Business Energy and Industrial Strategy,Intellectual Property Office,03/04/2018,Office Stationery,People Places & Serv Directorate,Amazon Svcs Eu-Uk Amazon.,H57720180406vsiwhtjvo,14.68,Not Applicable
Department for Business Energy and Industrial Strategy,Intellectual Property Office,03/04/2018,Office Stationery,People Places & Serv Directorate,Amazon UK Retail,H57720180405yyykeghue,20.31,Not Applicable
Department for Business Energy and Industrial Strategy,Intellectual Property Office,03/04/2018,Banking Services,Finance Directorate,Late Fee Reversal,H57720180406yzjscejmy,-12.00,Not Applicable
Department for Business Energy and Industrial Strategy,Intellectual Property Office,03/04/2018,Banking Services,Finance Directorate,Late Pmt Fee Refund,H57720180405nubdgqowj,-12.00,Not Applicable
Department for Business Energy and Industrial Strategy,Intellectual Property Office,03/04/2018,Banking Services,Finance Directorate,Late Payment Fee,H57720180404oinjejkml,12.00,Not Applicable
Department for Business Energy and Industrial Strategy,Intellectual Property Office,03/04/2018,Perpetual Licences,IT Directorate,Usabilityhub Pty Ltd,H57720180405blqcfvjkt,2907.99,Not Applicable
Department for Business Energy and Industrial Strategy,Intellectual Property Office,04/04/2018,Office Stationery,People Places & Serv Directorate,Screwfix Direct,H57720180406xszuawgex,76.20,Not Applicable
Department for Business Energy and Industrial Strategy,Intellectual Property Office,04/04/2018,Advertising Distribution,Innovation Directorate,Samlesbury Hotel,H57720180407xhaxivsht,478.00,Not Applicable
Department for Business Energy and Industrial Strategy,Intellectual Property Office,04/04/2018,Career Development Services,IT Directorate,Amazon UK Marketplace,H57720180406ssnsjgmen,57.52,Not Applicable
Department for Business Energy and Industrial Strategy,Intellectual Property Office,04/04/2018,Entertainment,Innovation Directorate,Amazon Svcs Eu-Uk Amazon.,H57720180406knwqknfiq,18.01,Not Applicable
Department for Business Energy and Industrial Strategy,Intellectual Property Office,05/04/2018,Entertainment,Copyright and Enforcement Directorate,Www.Royalmint.Com,H57720180407rgvdzexat,32.00,Not Applicable
Department for Business Energy and Industrial Strategy,Intellectual Property Office,05/04/2018,Other,People Places & Serv Directorate,Paypal,H57720180407tgleqckie,846.00,Not Applicable
Department for Business Energy and Industrial Strategy,Intellectual Property Office,05/04/2018,Advertising Distribution,Innovation Directorate,Amazon Eu Amazon.Co.Uk,H57720180407notvsylbi,48.60,Not Applicable
Department for Business Energy and Industrial Strategy,Intellectual Property Office,06/04/2018,Overseas Patent Specifications,Patent Directorate,The Intellectual Property,H57720180410vrscefwti,710.00,Not Applicable
Department for Business Energy and Industrial Strategy,Intellectual Property Office,06/04/2018,Career Development Services,IT Directorate,Amazon UK Retail,H57720180410asikjfsgb,61.97,Not Applicable
Department for Business Energy and Industrial Strategy,Intellectual Property Office,06/04/2018,Overseas Patent Specifications,Patent Directorate,The Intellectual Property,H57720180410dkmujpopn,460.00,Not Applicable
Department for Business Energy and Industrial Strategy,Intellectual Property Office,06/04/2018,Overseas Patent Specifications,Patent Directorate,The Intellectual Property,H57720180410hhdxsgwie,60.00,Not Applicable
Department for Business Energy and Industrial Strategy,Intellectual Property Office,06/04/2018,Overseas Patent Specifications,Patent Directorate,The Intellectual Property,H57720180410kyytmtfag,60.00,Not Applicable
Department for Business Energy and Industrial Strategy,Intellectual Property Office,06/04/2018,Overseas Patent Specifications,Patent Directorate,The Intellectual Property,H57720180410viqqtbins,370.00,Not Applicable
Department for Business Energy and Industrial Strategy,Intellectual Property Office,07/04/2018,Office Stationery,People Places & Serv Directorate,Amazon UK Retail,H57720180410hptadocce,43.80,Not Applicable
Department for Business Energy and Industrial Strategy,Intellectual Property Office,08/04/2018,Software Maintenance,IT Directorate,Amazon Svcs Eu-Uk Amazon.,H57720180411priskgbeb,31.54,Not Applicable
Department for Business Energy and Industrial Strategy,Intellectual Property Office,08/04/2018,Software Maintenance,IT Directorate,Amazon Svcs Eu-Uk Amazon.,H57720180410ckodrmfms,84.50,Not Applicable
Department for Business Energy and Industrial Strategy,Intellectual Property Office,09/04/2018,Office Stationery,People Places & Serv Directorate,The Colour Centre,H57720180411kdunmyuyj,223.69,Not Applicable
Department for Business Energy and Industrial Strategy,Intellectual Property Office,09/04/2018,Network and infrastructure H/W,IT Directorate,Amazon UK Retail,H57720180411awrosbrsj,20.47,Not Applicable
Department for Business Energy and Industrial Strategy,Intellectual Property Office,09/04/2018,Office Stationery,People Places & Serv Directorate,Screwfix Direct,H57720180411tlhiyovba,166.09,Not Applicable
Department for Business Energy and Industrial Strategy,Intellectual Property Office,09/04/2018,Entertainment,People Places & Serv Directorate,Www.Uk.Edensprings.Com,H57720180411bwqgjryfu,23.95,Not Applicable
Department for Business Energy and Industrial Strategy,Intellectual Property Office,10/04/2018,Career Development Services,IT Directorate,Amazon UK Marketplace,H57720180412viyxkniyo,39.99,Not Applicable
Department for Business Energy and Industrial Strategy,Intellectual Property Office,10/04/2018,Office Stationery,Finance Directorate,Xma Ltd,H57720180412uqfmbryrp,11.17,Not Applicable
Department for Business Energy and Industrial Strategy,Intellectual Property Office,10/04/2018,Overseas Patent Specifications,Patent Directorate,The Intellectual Property,H57720180412hddiumruo,-710.00,Not Applicable
Department for Business Energy and Industrial Strategy,Intellectual Property Office,10/04/2018,Entertainment,Finance Directorate,Www.Westminster-Briefi,H57720180412yqdmwkfqs,318.60,Not Applicable
Department for Business Energy and Industrial Strategy,Intellectual Property Office,10/04/2018,Office Stationery,People Places & Serv Directorate,Amazon UK Marketplace,H57720180412cjtgownjo,4.79,Not Applicable
Department for Business Energy and Industrial Strategy,Intellectual Property Office,10/04/2018,Office Stationery,People Places & Serv Directorate,Amazon UK Marketplace,H57720180412gmdyljpus,4.79,Not Applicable
Department for Business Energy and Industrial Strategy,Intellectual Property Office,10/04/2018,Office Stationery,People Places & Serv Directorate,Jansen Display Ltd,H57720180412hbmpwlshz,125.86,Not Applicable
Department for Business Energy and Industrial Strategy,Intellectual Property Office,10/04/2018,Office Stationery,People Places & Serv Directorate,Amazon UK Marketplace,H57720180412nsrayrwoc,4.79,Not Applicable
Department for Business Energy and Industrial Strategy,Intellectual Property Office,10/04/2018,Office Stationery,People Places & Serv Directorate,Amazon UK Marketplace,H57720180412pcdjcccwv,4.79,Not Applicable
Department for Business Energy and Industrial Strategy,Intellectual Property Office,10/04/2018,Office Stationery,People Places & Serv Directorate,Amazon UK Marketplace,H57720180412ylhlomsqk,4.79,Not Applicable
Department for Business Energy and Industrial Strategy,Intellectual Property Office,10/04/2018,Overseas Patent Specifications,Patent Directorate,The Intellectual Property,H57720180412dyvmmapej,-50.00,Not Applicable
Department for Business Energy and Industrial Strategy,Intellectual Property Office,10/04/2018,Overseas Patent Specifications,Patent Directorate,The Intellectual Property,H57720180412gxrbwqtps,-460.00,Not Applicable
Department for Business Energy and Industrial Strategy,Intellectual Property Office,10/04/2018,Overseas Patent Specifications,Patent Directorate,The Intellectual Property,H57720180412lokagsyld,-60.00,Not Applicable
Department for Business Energy and Industrial Strategy,Intellectual Property Office,10/04/2018,Overseas Patent Specifications,Patent Directorate,The Intellectual Property,H57720180412omvijstir,-60.00,Not Applicable
Department for Business Energy and Industrial Strategy,Intellectual Property Office,10/04/2018,Overseas Patent Specifications,Patent Directorate,The Intellectual Property,H57720180412psnrbbplg,-370.00,Not Applicable
Department for Business Energy and Industrial Strategy,Intellectual Property Office,10/04/2018,Office Stationery,People Places & Serv Directorate,Amazon UK Marketplace,H57720180412klzrtuxnn,45.98,Not Applicable
Department for Business Energy and Industrial Strategy,Intellectual Property Office,10/04/2018,Career Development Services,People Places & Serv Directorate,Amazon UK Marketplace,H57720180412yyeifgpfz,26.53,Not Applicable
Department for Business Energy and Industrial Strategy,Intellectual Property Office,10/04/2018,Office Stationery,People Places & Serv Directorate,Amazon UK Retail,H57720180412fgjvlcyut,12.48,Not Applicable
Department for Business Energy and Industrial Strategy,Intellectual Property Office,10/04/2018,Network and infrastructure H/W,People Places & Serv Directorate,Amazon UK Marketplace,H57720180412icqkfghpo,12.05,Not Applicable
Department for Business Energy and Industrial Strategy,Intellectual Property Office,11/04/2018,Career Development Services,IT Directorate,Amazon UK Marketplace,H57720180413trzfoleuh,10.99,Not Applicable
Department for Business Energy and Industrial Strategy,Intellectual Property Office,11/04/2018,Office Stationery,Finance Directorate,Xma Ltd,H57720180414rmdbposbp,473.47,Not Applicable
Department for Business Energy and Industrial Strategy,Intellectual Property Office,11/04/2018,Office Stationery,People Places & Serv Directorate,Nightsearcher Ltd,H57720180417bgoqlwcvy,73.20,Not Applicable
Department for Business Energy and Industrial Strategy,Intellectual Property Office,11/04/2018,Office Stationery,People Places & Serv Directorate,Www.Officestationery.,H57720180413yfjhatpmu,36.16,Not Applicable
Department for Business Energy and Industrial Strategy,Intellectual Property Office,11/04/2018,Entertainment,Innovation Directorate,Amazon Svcs Eu-Uk Amazon.,H57720180413sshpmgfts,-11.65,Not Applicable
Department for Business Energy and Industrial Strategy,Intellectual Property Office,11/04/2018,Entertainment,Innovation Directorate,Amazon Svcs Eu-Uk Amazon.,H57720180413xuphbxyep,-6.00,Not Applicable
Department for Business Energy and Industrial Strategy,Intellectual Property Office,12/04/2018,Career Development Services,IT Directorate,Amazon UK Marketplace,H57720180414eakrmnzng,61.72,Not Applicable
Department for Business Energy and Industrial Strategy,Intellectual Property Office,12/04/2018,Career Development Services,IT Directorate,Amazon Svcs Eu-Uk Amazon.,H57720180414kwkomwhlg,7.42,Not Applicable
Department for Business Energy and Industrial Strategy,Intellectual Property Office,12/04/2018,Office Furniture,People Places & Serv Directorate,Www.Officefurnitureonl,H57720180414joetftrdq,616.80,Not Applicable
Department for Business Energy and Industrial Strategy,Intellectual Property Office,12/04/2018,Overseas Patent Specifications,Patent Directorate,Onepetro,H57720180414cgeucysct,16.00,Not Applicable
Department for Business Energy and Industrial Strategy,Intellectual Property Office,12/04/2018,Network and infrastructure H/W,IT Directorate,Comms Exp,H57720180414tlxsumaxx,352.08,Not Applicable
Department for Business Energy and Industrial Strategy,Intellectual Property Office,12/04/2018,Seminars and Confereces,People Places & Serv Directorate,Event Halo,H57720180414ihielkthb,388.33,Not Applicable
Department for Business Energy and Industrial Strategy,Intellectual Property Office,13/04/2018,Steering Board,People Places & Serv Directorate,Sainsburys Superma,H57720180417xifjsxjht,18.63,Not Applicable
Department for Business Energy and Industrial Strategy,Intellectual Property Office,13/04/2018,Office Stationery,Finance Directorate,Www.Ukpos.Com,H57720180417zjfkjiegl,614.88,Not Applicable
Department for Business Energy and Industrial Strategy,Intellectual Property Office,14/04/2018,Software Maintenance,Projects,The Intellectual Property,H57720180417fffnboxhb,170.00,Not Applicable
Department for Business Energy and Industrial Strategy,Intellectual Property Office,14/04/2018,Software Maintenance,Projects,The Intellectual Property,H57720180417hdxsnllwu,50.00,Not Applicable
Department for Business Energy and Industrial Strategy,Intellectual Property Office,14/04/2018,Overseas Patent Specifications,Patent Directorate,The Intellectual Property,H57720180417hzvllslrg,75.00,Not Applicable
Department for Business Energy and Industrial Strategy,Intellectual Property Office,14/04/2018,Overseas Patent Specifications,Patent Directorate,The Intellectual Property,H57720180417lhlniebvx,20.00,Not Applicable
Department for Business Energy and Industrial Strategy,Intellectual Property Office,15/04/2018,Miscellaneous Receipts,Finance Directorate,Amazon Svcs Eu-Uk Amazon.,H57720180418lqdnvowbq,39.92,Not Applicable
Department for Business Energy and Industrial Strategy,Intellectual Property Office,16/04/2018,Office Stationery,People Places & Serv Directorate,Nightsearcher Ltd,H57720180420lgqelyldk,23.89,Not Applicable
Department for Business Energy and Industrial Strategy,Intellectual Property Office,16/04/2018,Banking Services,Finance Directorate,Debit,H57720180417evrefodxm,12.00,Not Applicable
Department for Business Energy and Industrial Strategy,Intellectual Property Office,16/04/2018,Network and infrastructure H/W,IT Directorate,Amazon Svcs Eu-Uk Amazon.,H57720180419ixueyihfl,38.96,Not Applicable
Department for Business Energy and Industrial Strategy,Intellectual Property Office,16/04/2018,Seminars and Confereces,People Places & Serv Directorate,Przcharge.Prezi.Com,H57720180418xdskobnsb,15.60,Not Applicable
Department for Business Energy and Industrial Strategy,Intellectual Property Office,16/04/2018,Perpetual Licences,IT Directorate,Meetingzone Ltd,H57720180418unemiedom,529.19,Not Applicable
Department for Business Energy and Industrial Strategy,Intellectual Property Office,17/04/2018,Advertising Distribution,Innovation Directorate,Marksandspencer.Co,H57720180419tzcygzybn,131.99,Not Applicable
Department for Business Energy and Industrial Strategy,Intellectual Property Office,17/04/2018,Advertising Distribution,Innovation Directorate,Twitonomy.Com,H57720180419yomtutwsg,13.70,Not Applicable
Department for Business Energy and Industrial Strategy,Intellectual Property Office,17/04/2018,Office Stationery,Finance Directorate,Amazon Svcs Eu-Uk Amazon.,H57720180419inzqgskgd,13.75,Not Applicable
Department for Business Energy and Industrial Strategy,Intellectual Property Office,17/04/2018,Career Development Services,IT Directorate,Eb *improve Training M,H57720180419gtnhthjfw,150.00,Not Applicable
Department for Business Energy and Industrial Strategy,Intellectual Property Office,17/04/2018,Career Development Services,IT Directorate,Eb *improve Training S,H57720180419ytrwjoyhf,150.00,Not Applicable
Department for Business Energy and Industrial Strategy,Intellectual Property Office,18/04/2018,Career Development Services,IT Directorate,Amazon Svcs Eu-Uk Amazon.,H57720180420jddoltjuw,16.83,Not Applicable
Department for Business Energy and Industrial Strategy,Intellectual Property Office,18/04/2018,Office Stationery,People Places & Serv Directorate,Screwfix Direct,H57720180420bcoczbhyj,92.47,Not Applicable
Department for Business Energy and Industrial Strategy,Intellectual Property Office,18/04/2018,Other,People Places & Serv Directorate,Tfl Road Charge,H57720180421qssnqkqxb,11.50,Not Applicable
Department for Business Energy and Industrial Strategy,Intellectual Property Office,18/04/2018,Office Stationery,People Places & Serv Directorate,Screwfix Direct,H57720180420dppybxwjl,100.00,Not Applicable
Department for Business Energy and Industrial Strategy,Intellectual Property Office,18/04/2018,Advertising Distribution,Innovation Directorate,Marksandspencer.Co,H57720180420mhllpjugc,131.99,Not Applicable
Department for Business Energy and Industrial Strategy,Intellectual Property Office,18/04/2018,Software Maintenance,IT Directorate,Amazon UK Retail,H57720180420iekqnvdwv,83.94,Not Applicable
Department for Business Energy and Industrial Strategy,Intellectual Property Office,18/04/2018,Software Maintenance,IT Directorate,Amazon UK Marketplace,H57720180420qbfpnhhic,155.38,Not Applicable
Department for Business Energy and Industrial Strategy,Intellectual Property Office,18/04/2018,Network and infrastructure H/W,IT Directorate,Amazon Svcs Eu-Uk Amazon.,H57720180421nolcsigja,11.98,Not Applicable
Department for Business Energy and Industrial Strategy,Intellectual Property Office,18/04/2018,Software Maintenance,IT Directorate,Nycomm Ltd,H57720180420tisedijrx,468.54,Not Applicable
Department for Business Energy and Industrial Strategy,Intellectual Property Office,18/04/2018,Office Stationery,People Places & Serv Directorate,Amazon UK Marketplace,H57720180420ddudmaqwh,24.99,Not Applicable
Department for Business Energy and Industrial Strategy,Intellectual Property Office,18/04/2018,Career Development Services,People Places & Serv Directorate,Amazon Svcs Eu-Uk Amazon.,H57720180420fqpxcffnp,12.19,Not Applicable
Department for Business Energy and Industrial Strategy,Intellectual Property Office,18/04/2018,Network and infrastructure H/W,People Places & Serv Directorate,Aldi 26 780,H57720180420rkuwjuxdc,31.46,Not Applicable
Department for Business Energy and Industrial Strategy,Intellectual Property Office,19/04/2018,Career Development Services,IT Directorate,Www.Dominos.Co.Uk,H57720180421gmkfxuwwf,46.97,Not Applicable
Department for Business Energy and Industrial Strategy,Intellectual Property Office,19/04/2018,Office Stationery,People Places & Serv Directorate,Don Ruffles Ltd,H57720180421usgisjcfp,481.02,Not Applicable
Department for Business Energy and Industrial Strategy,Intellectual Property Office,19/04/2018,Advertising Distribution,Innovation Directorate,Marksandspencer.Co,H57720180421shsfdsljp,131.99,Not Applicable
Department for Business Energy and Industrial Strategy,Intellectual Property Office,19/04/2018,Software Maintenance,IT Directorate,Amazon UK Marketplace,H57720180421untqmlbpg,17.27,Not Applicable
Department for Business Energy and Industrial Strategy,Intellectual Property Office,19/04/2018,Software Maintenance,Projects,The Intellectual Property,H57720180424mrzstujir,-170.00,Not Applicable
Department for Business Energy and Industrial Strategy,Intellectual Property Office,19/04/2018,Software Maintenance,Projects,The Intellectual Property,H57720180424poqutimih,-50.00,Not Applicable
Department for Business Energy and Industrial Strategy,Intellectual Property Office,19/04/2018,Network and infrastructure H/W,IT Directorate,Ebuyer (UK) Ltd,H57720180424nrogqhqgr,93.03,Not Applicable
Department for Business Energy and Industrial Strategy,Intellectual Property Office,19/04/2018,Software Maintenance,IT Directorate,Amazon Eu Amazon.Co.Uk,H57720180421lbslgmjlo,36.65,Not Applicable
Department for Business Energy and Industrial Strategy,Intellectual Property Office,19/04/2018,Software Maintenance,IT Directorate,Amazon Eu Amazon.Co.Uk,H57720180421lwxgtwhif,103.85,Not Applicable
Department for Business Energy and Industrial Strategy,Intellectual Property Office,19/04/2018,Software Maintenance,IT Directorate,Amazon Eu Amazon.Co.Uk,H57720180421zhryqnhtw,103.85,Not Applicable
Department for Business Energy and Industrial Strategy,Intellectual Property Office,19/04/2018,Career Development Services,IT Directorate,Paypal,H57720180421lpdiitmhv,188.00,Not Applicable
Department for Business Energy and Industrial Strategy,Intellectual Property Office,19/04/2018,Software Maintenance,IT Directorate,Nycomm Ltd,H57720180421bvpjqapmh,78.00,Not Applicable
Department for Business Energy and Industrial Strategy,Intellectual Property Office,19/04/2018,Office Stationery,People Places & Serv Directorate,Healthy Workstations Ltd,H57720180421xicbvidqf,106.80,Not Applicable
Department for Business Energy and Industrial Strategy,Intellectual Property Office,20/04/2018,Other,People Places & Serv Directorate,Www.Backcs.Co.Uk,H57720180424eeqthtikv,192.00,Not Applicable
Department for Business Energy and Industrial Strategy,Intellectual Property Office,20/04/2018,Other,People Places & Serv Directorate,Amazon Svcs Eu-Uk Amazon.,H57720180424zbxekquwq,30.98,Not Applicable
Department for Business Energy and Industrial Strategy,Intellectual Property Office,20/04/2018,Fixed Telecoms Equipment,IT Directorate,Www.Zen.Co.Uk,H57720180424hynfueolk,30.43,Not Applicable
Department for Business Energy and Industrial Strategy,Intellectual Property Office,20/04/2018,Network and infrastructure H/W,IT Directorate,Amazon Svcs Eu-Uk Amazon.,H57720180424ebhdenxux,36.44,Not Applicable
Department for Business Energy and Industrial Strategy,Intellectual Property Office,20/04/2018,Network and infrastructure H/W,IT Directorate,Amazon Svcs Eu-Uk Amazon.,H57720180424ofqigythv,108.67,Not Applicable
Department for Business Energy and Industrial Strategy,Intellectual Property Office,20/04/2018,Office Furniture,People Places & Serv Directorate,Www.Ikea.Com,H57720180424veykdndjy,1277.50,Not Applicable
Department for Business Energy and Industrial Strategy,Intellectual Property Office,20/04/2018,Career Development Services,People Places & Serv Directorate,Chapter Cardiff,H57720180424hndipmbpt,7.00,Not Applicable
Department for Business Energy and Industrial Strategy,Intellectual Property Office,21/04/2018,Network and infrastructure H/W,IT Directorate,Amazon Svcs Eu-Uk Amazon.,H57720180424fjllbgshq,30.85,Not Applicable
Department for Business Energy and Industrial Strategy,Intellectual Property Office,22/04/2018,Other,People Places & Serv Directorate,Amazon Svcs Eu-Uk Amazon.,H57720180425jffahflbm,16.98,Not Applicable
Department for Business Energy and Industrial Strategy,Intellectual Property Office,22/04/2018,Office Stationery,People Places & Serv Directorate,Amazon Svcs Eu-Uk Amazon.,H57720180425vupbnubje,39.84,Not Applicable
Department for Business Energy and Industrial Strategy,Intellectual Property Office,22/04/2018,Network and infrastructure H/W,IT Directorate,Amazon Svcs Eu-Uk Amazon.,H57720180424ckoirkgcm,86.35,Not Applicable
Department for Business Energy and Industrial Strategy,Intellectual Property Office,23/04/2018,Other,People Places & Serv Directorate,Amazon UK Retail,H57720180425qmrijkwqn,38.69,Not Applicable
Department for Business Energy and Industrial Strategy,Intellectual Property Office,23/04/2018,Other,People Places & Serv Directorate,Paypal,H57720180425ylofrrwyp,15.62,Not Applicable
Department for Business Energy and Industrial Strategy,Intellectual Property Office,23/04/2018,Office Stationery,People Places & Serv Directorate,Sacktrucksdirect.C,H57720180425fmluccwxm,299.98,Not Applicable
Department for Business Energy and Industrial Strategy,Intellectual Property Office,23/04/2018,Office Stationery,People Places & Serv Directorate,Www.Libertygames.Co.Uk,H57720180425tsmqqjsjc,69.99,Not Applicable
Department for Business Energy and Industrial Strategy,Intellectual Property Office,23/04/2018,Steering Board,People Places & Serv Directorate,Tesco Stores 5177,H57720180425kwtbtygri,4.35,Not Applicable
Department for Business Energy and Industrial Strategy,Intellectual Property Office,23/04/2018,Entertainment,Innovation Directorate,Asda Groceries Online,H57720180425nehhfioce,39.33,Not Applicable
Department for Business Energy and Industrial Strategy,Intellectual Property Office,23/04/2018,Entertainment,Innovation Directorate,Subway,H57720180425rsnngrgsu,30.00,Not Applicable
Department for Business Energy and Industrial Strategy,Intellectual Property Office,23/04/2018,Advertising Distribution,Innovation Directorate,Facebk Xnpbuenm62,H57720180425emappcwqi,6.45,Not Applicable
Department for Business Energy and Industrial Strategy,Intellectual Property Office,24/04/2018,Entertainment,People Places & Serv Directorate,Vibrant Colour Limited,H57720180426bpyyghnpe,79.99,Not Applicable
Department for Business Energy and Industrial Strategy,Intellectual Property Office,24/04/2018,T&S UK,IT Directorate,Premier Inn44034360,H57720180427ytijpnvhl,664.50,Not Applicable
Department for Business Energy and Industrial Strategy,Intellectual Property Office,24/04/2018,Network and infrastructure H/W,IT Directorate,Amazon Svcs Eu-Uk Amazon.,H57720180426xwytbuqqs,59.94,Not Applicable
Department for Business Energy and Industrial Strategy,Intellectual Property Office,24/04/2018,Overseas Patent Specifications,Patent Directorate,Paypal,H57720180426snqhommyh,30.00,Not Applicable
Department for Business Energy and Industrial Strategy,Intellectual Property Office,24/04/2018,Overseas Patent Specifications,Patent Directorate,Wiley Article Pdf,H57720180426xdxmljxut,33.73,Not Applicable
Department for Business Energy and Industrial Strategy,Intellectual Property Office,24/04/2018,Entertainment,Innovation Directorate,Subway,H57720180426lfifnraog,30.00,Not Applicable
Department for Business Energy and Industrial Strategy,Intellectual Property Office,24/04/2018,Career Development Services,Projects,Paypal,H57720180426swwlxhxwu,354.00,Not Applicable
Department for Business Energy and Industrial Strategy,Intellectual Property Office,24/04/2018,Career Development Services,People Places & Serv Directorate,Paypal,H57720180426rhlskzqzs,188.00,Not Applicable
Department for Business Energy and Industrial Strategy,Intellectual Property Office,24/04/2018,Seminars and Confereces,People Places & Serv Directorate,Www.Westminster-Briefi,H57720180426vbjjjmqqs,99.60,Not Applicable
Department for Business Energy and Industrial Strategy,Intellectual Property Office,25/04/2018,Books,Copyright and Enforcement Directorate,Policy Press At Uob,H57720180427tiqqplivs,35.00,Not Applicable
Department for Business Energy and Industrial Strategy,Intellectual Property Office,25/04/2018,Office Stationery,People Places & Serv Directorate,Www.Zoro.Co.Uk,H57720180427umcirirqw,22.00,Not Applicable
Department for Business Energy and Industrial Strategy,Intellectual Property Office,25/04/2018,Minor Works-Goods,People Places & Serv Directorate,Par Group,H57720180427dfclpxiwd,235.79,Not Applicable
Department for Business Energy and Industrial Strategy,Intellectual Property Office,25/04/2018,Office Stationery,People Places & Serv Directorate,Healthy Workstations Ltd,H57720180427ihdogopll,113.94,Not Applicable
Department for Business Energy and Industrial Strategy,Intellectual Property Office,25/04/2018,Network and infrastructure H/W,IT Directorate,Amazon Svcs Eu-Uk Amazon.,H57720180427ylwegxcxf,39.98,Not Applicable
Department for Business Energy and Industrial Strategy,Intellectual Property Office,25/04/2018,Network and infrastructure H/W,IT Directorate,Bt Business Direct Ltd,H57720180427pclztxiwh,62.54,Not Applicable
Department for Business Energy and Industrial Strategy,Intellectual Property Office,25/04/2018,Books Newspaper Pub(central),Patent Directorate,Wwwstereophilecom,H57720180501gsnjszyel,36.67,Not Applicable
Department for Business Energy and Industrial Strategy,Intellectual Property Office,26/04/2018,T&S O-seas excl EPOQUE,IT Directorate,Vuelingmcp,H57720180501mfiglthwi,206.64,Not Applicable
Department for Business Energy and Industrial Strategy,Intellectual Property Office,26/04/2018,Office Stationery,Finance Directorate,Xma Ltd,H57720180501ykssgcllf,74.38,Not Applicable
Department for Business Energy and Industrial Strategy,Intellectual Property Office,26/04/2018,Minor Works-Goods,People Places & Serv Directorate,Acorn Glass & Glazing,H57720180428qefskhjrj,181.00,Not Applicable
Department for Business Energy and Industrial Strategy,Intellectual Property Office,26/04/2018,Network and infrastructure H/W,IT Directorate,Amazon UK Retail,H57720180428utrfwfwbo,24.31,Not Applicable
Department for Business Energy and Industrial Strategy,Intellectual Property Office,26/04/2018,Overseas Patent Specifications,Patent Directorate,The Intellectual Property,H57720180501gmiovpsjs,-75.00,Not Applicable
Department for Business Energy and Industrial Strategy,Intellectual Property Office,29/04/2018,Overseas Patent Specifications,Patent Directorate,Amazon UK Retail,H57720180501wwdgfbmse,55.66,Not Applicable
Department for Business Energy and Industrial Strategy,Intellectual Property Office,29/04/2018,Other,People Places & Serv Directorate,Amazon UK Marketplace,H57720180501wuhygntno,35.98,Not Applicable
Department for Business Energy and Industrial Strategy,Intellectual Property Office,29/04/2018,Career Development Services,IT Directorate,Paypal,H57720180501lywvtpmun,16.37,Not Applicable
Department for Business Energy and Industrial Strategy,Intellectual Property Office,30/04/2018,Career Development Services,IT Directorate,Don Ruffles Ltd,H57720180502lkiimmrxe,26.28,Not Applicable
Department for Business Energy and Industrial Strategy,Intellectual Property Office,30/04/2018,Career Development Services,People Places & Serv Directorate,Amazon UK Marketplace,H57720180502xdnkwlofa,27.96,Not Applicable
